{"text_format":"1","workbook":"xlsx","n_sheets":1,"sheets":["GENERADOR NOMINAS MASIVAS"],"not_rendered":{"charts":0,"images":1,"macros":1,"external_links":0,"defined_names":1,"comments":0,"pivot_tables":0},"unopened":[],"bounds":{"document_bytes":16777216,"sheet_cells":100000,"rows_first":2000,"rows_last":500,"rows_between":2000,"halvings":0,"cell_chars":16384,"cell_head_chars":4096},"cells_cut":0,"cells_raw":0,"read":"whole","date_system":"1900"}

{"sheet":"GENERADOR NOMINAS MASIVAS","index":0,"n_rows":1123,"n_cols":26,"rows_kept":1123,"cut":false,"hidden":false,"merged":[[3,3,3,8],[5,7,7,7],[5,4,5,6],[6,4,6,6],[7,4,7,6],[5,8,7,8]]}
[]
[]
[]
[null,null,null,"INFORMACION DE LA EMPRESA"]
[]
[null,null,null,"Nombre  Empresa",null,null,null,"Total Registros",{"$f":"COUNTA(B15:B1014)","v":0}]
[null,null,null,"No de Cuenta  Matriz"]
[null,null,null,"Correo Electrónico"]
[]
[]
[]
["INFORMACIÓN EMPLEADOS"]
[]
["Tipo Documento \nde Identidad","Número Documento\n de Identidad ","Primer Nombre","Segundo Nombre","Primer Apellido ","Segundo Apellido","Fecha de  Nacimiento\n AAAA/MM/DD    ","Numero Telefónico de Residencia de 7 DIGITOS","Número de Celular","Dirección\nde Residencia","Ciudad\nde Residencia","Dirección de \nCorreo Electrónico Empleado","Tipo de Contrato","Salario Mensual $ \n(Sin centavos)","BUSCARV DE CIUDAD DE RESIDENCIA","FECHA HOY"]
[null,null,null,null,null,null,null,null,null,null,null,null,null,null,{"$f":"VLOOKUP(K15,$U$16:$V$1123,2,0)","v":{"$error":"#N/A"}},{"$f":"TODAY()","v":"2024-06-14"},null,"TIPO DE IDENTIFICACION",null,null,"CIUDADES","COD_DANE",null,"TIPO DE CONTRATO",null,"VERIFICAR DUPLICADO DE DOCUMENTO"]
[null,null,null,null,null,null,null,null,null,null,null,null,null,null,{"$f":"VLOOKUP(K16,$U$16:$V$1123,2,0)","v":{"$error":"#N/A"}},null,null,"CEDULA DE CIUDADANIA","C",null,"ABEJORRAL",5002,null,"TERMINO FIJO",null,{"$f":"MODE(B15:B1014)","v":{"$error":"#N/A"}}]
[null,null,null,null,null,null,null,null,null,null,null,null,null,null,{"$error":"#N/A"},null,null,"CEDULA DE EXTRANJERIA","E",null,"ABREGO",54003,null,"TERMINO INDEFINIDO",null,"VERIFICAR DUPLICADO DE TELEFONO"]
[null,null,null,null,null,null,null,null,null,null,null,null,null,null,{"$error":"#N/A"},null,null,"TARJETA DE IDENTIDAD","T",null,"ABRIAQUI",5004,null,"LABOR CONTRATADA",null,{"$f":"MODE(H15:H1014)","v":{"$error":"#N/A"}}]
[null,null,null,null,null,null,null,null,null,null,null,null,null,null,{"$error":"#N/A"},null,null,null,null,null,"ACACIAS",50006,null,"PRESTACION DE SERVICIOS",null,"VERIFICAR DUPLICADO DE CELULAR"]
[null,null,null,null,null,null,null,null,null,null,null,null,null,null,{"$error":"#N/A"},null,null,null,null,null,"ACANDI",27006,null,"PROVISIONALIDAD",null,{"$f":"MODE(I15:I1014)","v":{"$error":"#N/A"}}]
[null,null,null,null,null,null,null,null,null,null,null,null,null,null,{"$error":"#N/A"},null,null,null,null,null,"ACEVEDO",41006,null,"LIBRE NOMBRAMIENTO Y REMOCION"]
[null,null,null,null,null,null,null,null,null,null,null,null,null,null,{"$error":"#N/A"},null,null,null,null,null,"AGUA DE DIOS",25001,null,"CARRERA ADMINISTRATIVA"]
[null,null,null,null,null,null,null,null,null,null,null,null,null,null,{"$error":"#N/A"},null,null,null,null,null,"AGUACHICA",20011,null,"PROPIEDAD"]
[null,null,null,null,null,null,null,null,null,null,null,null,null,null,{"$error":"#N/A"},null,null,null,null,null,"AGUADAS",17013,null,"OTRO"]
[null,null,null,null,null,null,null,null,null,null,null,null,null,null,{"$error":"#N/A"},null,null,null,null,null,"AGUAZUL",85010]
[null,null,null,null,null,null,null,null,null,null,null,null,null,null,{"$error":"#N/A"},null,null,null,null,null,"AGUSTIN CODAZZI",20013]
[null,null,null,null,null,null,null,null,null,null,null,null,null,null,{"$error":"#N/A"},null,null,null,null,null,"AIPE",41016]
[null,null,null,null,null,null,null,null,null,null,null,null,null,null,{"$error":"#N/A"},null,null,null,null,null,"ALBAN - CUNDINAMARCA",25019]
[null,null,null,null,null,null,null,null,null,null,null,null,null,null,{"$error":"#N/A"},null,null,null,null,null,"ALBAN - NARINO",52019]
[null,null,null,null,null,null,null,null,null,null,null,null,null,null,{"$error":"#N/A"},null,null,null,null,null,"ALBANIA - CAQUETA",18029]
[null,null,null,null,null,null,null,null,null,null,null,null,null,null,{"$error":"#N/A"},null,null,null,null,null,"ALBANIA - SANTADER",68020]
[null,null,null,null,null,null,null,null,null,null,null,null,null,null,{"$error":"#N/A"},null,null,null,null,null,"ALCALA",76020]
[null,null,null,null,null,null,null,null,null,null,null,null,null,null,{"$error":"#N/A"},null,null,null,null,null,"ALDANA",52022]
[null,null,null,null,null,null,null,null,null,null,null,null,null,null,{"$error":"#N/A"},null,null,null,null,null,"ALEJANDRIA",5021]
[null,null,null,null,null,null,null,null,null,null,null,null,null,null,{"$error":"#N/A"},null,null,null,null,null,"ALGARROBO",47003]
[null,null,null,null,null,null,null,null,null,null,null,null,null,null,{"$error":"#N/A"},null,null,null,null,null,"ALGECIRAS",41020]
[null,null,null,null,null,null,null,null,null,null,null,null,null,null,{"$error":"#N/A"},null,null,null,null,null,"ALMAGUER",19022]
[null,null,null,null,null,null,null,null,null,null,null,null,null,null,{"$error":"#N/A"},null,null,null,null,null,"ALMEIDA",15022]
[null,null,null,null,null,null,null,null,null,null,null,null,null,null,{"$error":"#N/A"},null,null,null,null,null,"ALPUJARRA",73024]
[null,null,null,null,null,null,null,null,null,null,null,null,null,null,{"$error":"#N/A"},null,null,null,null,null,"ALTAMIRA",41026]
[null,null,null,null,null,null,null,null,null,null,null,null,null,null,{"$error":"#N/A"},null,null,null,null,null,"ALTO BAUDO",27025]
[null,null,null,null,null,null,null,null,null,null,null,null,null,null,{"$error":"#N/A"},null,null,null,null,null,"ALTOS DEL ROSARIO",13030]
[null,null,null,null,null,null,null,null,null,null,null,null,null,null,{"$error":"#N/A"},null,null,null,null,null,"ALVARADO",73026]
[null,null,null,null,null,null,null,null,null,null,null,null,null,null,{"$error":"#N/A"},null,null,null,null,null,"AMAGA",5030]
[null,null,null,null,null,null,null,null,null,null,null,null,null,null,{"$error":"#N/A"},null,null,null,null,null,"AMALFI",5031]
[null,null,null,null,null,null,null,null,null,null,null,null,null,null,{"$error":"#N/A"},null,null,null,null,null,"AMBALEMA",73030]
[null,null,null,null,null,null,null,null,null,null,null,null,null,null,{"$error":"#N/A"},null,null,null,null,null,"ANAPOIMA",25035]
[null,null,null,null,null,null,null,null,null,null,null,null,null,null,{"$error":"#N/A"},null,null,null,null,null,"ANCUYA",52036]
[null,null,null,null,null,null,null,null,null,null,null,null,null,null,{"$error":"#N/A"},null,null,null,null,null,"ANDALUCIA",76036]
[null,null,null,null,null,null,null,null,null,null,null,null,null,null,{"$error":"#N/A"},null,null,null,null,null,"ANDES",5034]
[null,null,null,null,null,null,null,null,null,null,null,null,null,null,{"$error":"#N/A"},null,null,null,null,null,"ANGELOPOLIS",5036]
[null,null,null,null,null,null,null,null,null,null,null,null,null,null,{"$error":"#N/A"},null,null,null,null,null,"ANGOSTURA",5038]
[null,null,null,null,null,null,null,null,null,null,null,null,null,null,{"$error":"#N/A"},null,null,null,null,null,"ANOLAIMA",25040]
[null,null,null,null,null,null,null,null,null,null,null,null,null,null,{"$error":"#N/A"},null,null,null,null,null,"ANORI",5040]
[null,null,null,null,null,null,null,null,null,null,null,null,null,null,{"$error":"#N/A"},null,null,null,null,null,"ANSERMA",17042]
[null,null,null,null,null,null,null,null,null,null,null,null,null,null,{"$error":"#N/A"},null,null,null,null,null,"ANSERMANUEVO",76041]
[null,null,null,null,null,null,null,null,null,null,null,null,null,null,{"$error":"#N/A"},null,null,null,null,null,"ANTIOQUIA",5042]
[null,null,null,null,null,null,null,null,null,null,null,null,null,null,{"$error":"#N/A"},null,null,null,null,null,"ANZA",5044]
[null,null,null,null,null,null,null,null,null,null,null,null,null,null,{"$error":"#N/A"},null,null,null,null,null,"ANZOATEGUI",73043]
[null,null,null,null,null,null,null,null,null,null,null,null,null,null,{"$error":"#N/A"},null,null,null,null,null,"APARTADO",5045]
[null,null,null,null,null,null,null,null,null,null,null,null,null,null,{"$error":"#N/A"},null,null,null,null,null,"APIA",66045]
[null,null,null,null,null,null,null,null,null,null,null,null,null,null,{"$error":"#N/A"},null,null,null,null,null,"AQUITANIA",15047]
[null,null,null,null,null,null,null,null,null,null,null,null,null,null,{"$error":"#N/A"},null,null,null,null,null,"ARACATACA",47053]
[null,null,null,null,null,null,null,null,null,null,null,null,null,null,{"$error":"#N/A"},null,null,null,null,null,"ARANZAZU",17050]
[null,null,null,null,null,null,null,null,null,null,null,null,null,null,{"$error":"#N/A"},null,null,null,null,null,"ARATOCA",68051]
[null,null,null,null,null,null,null,null,null,null,null,null,null,null,{"$error":"#N/A"},null,null,null,null,null,"ARAUCA",81001]
[null,null,null,null,null,null,null,null,null,null,null,null,null,null,{"$error":"#N/A"},null,null,null,null,null,"ARAUQUITA",81065]
[null,null,null,null,null,null,null,null,null,null,null,null,null,null,{"$error":"#N/A"},null,null,null,null,null,"ARBELAEZ",25053]
[null,null,null,null,null,null,null,null,null,null,null,null,null,null,{"$error":"#N/A"},null,null,null,null,null,"ARBOLEDA",52051]
[null,null,null,null,null,null,null,null,null,null,null,null,null,null,{"$error":"#N/A"},null,null,null,null,null,"ARBOLEDAS",54051]
[null,null,null,null,null,null,null,null,null,null,null,null,null,null,{"$error":"#N/A"},null,null,null,null,null,"ARBOLETES",5051]
[null,null,null,null,null,null,null,null,null,null,null,null,null,null,{"$error":"#N/A"},null,null,null,null,null,"ARCABUCO",15051]
[null,null,null,null,null,null,null,null,null,null,null,null,null,null,{"$error":"#N/A"},null,null,null,null,null,"ARENAL",13042]
[null,null,null,null,null,null,null,null,null,null,null,null,null,null,{"$error":"#N/A"},null,null,null,null,null,"ARGELIA",76054]
[null,null,null,null,null,null,null,null,null,null,null,null,null,null,{"$error":"#N/A"},null,null,null,null,null,"ARGELIA - ANTIOQUIA",5055]
[null,null,null,null,null,null,null,null,null,null,null,null,null,null,{"$error":"#N/A"},null,null,null,null,null,"ARGELIA - CAUCA",19050]
[null,null,null,null,null,null,null,null,null,null,null,null,null,null,{"$error":"#N/A"},null,null,null,null,null,"ARIGUANI",47058]
[null,null,null,null,null,null,null,null,null,null,null,null,null,null,{"$error":"#N/A"},null,null,null,null,null,"ARJONA",13052]
[null,null,null,null,null,null,null,null,null,null,null,null,null,null,{"$error":"#N/A"},null,null,null,null,null,"ARMENIA - ANTIQUIA",5059]
[null,null,null,null,null,null,null,null,null,null,null,null,null,null,{"$f":"VLOOKUP(K80,$U$16:$V$1123,2,0)","v":{"$error":"#N/A"}},null,null,null,null,null,"ARMENIA - QUINDIO",63001]
[null,null,null,null,null,null,null,null,null,null,null,null,null,null,{"$error":"#N/A"},null,null,null,null,null,"ARMERO (GUAYABAL)",73055]
[null,null,null,null,null,null,null,null,null,null,null,null,null,null,{"$error":"#N/A"},null,null,null,null,null,"ARROYOHONDO",13062]
[null,null,null,null,null,null,null,null,null,null,null,null,null,null,{"$error":"#N/A"},null,null,null,null,null,"ASTREA",20032]
[null,null,null,null,null,null,null,null,null,null,null,null,null,null,{"$error":"#N/A"},null,null,null,null,null,"ATACO",73067]
[null,null,null,null,null,null,null,null,null,null,null,null,null,null,{"$error":"#N/A"},null,null,null,null,null,"ATRATO",27050]
[null,null,null,null,null,null,null,null,null,null,null,null,null,null,{"$error":"#N/A"},null,null,null,null,null,"AYAPEL",23068]
[null,null,null,null,null,null,null,null,null,null,null,null,null,null,{"$error":"#N/A"},null,null,null,null,null,"BAGADO",27073]
[null,null,null,null,null,null,null,null,null,null,null,null,null,null,{"$error":"#N/A"},null,null,null,null,null,"BAHIA SOLANO (MUTIS)",27075]
[null,null,null,null,null,null,null,null,null,null,null,null,null,null,{"$error":"#N/A"},null,null,null,null,null,"BAJO BAUDO (PIZARRO)",27077]
[null,null,null,null,null,null,null,null,null,null,null,null,null,null,{"$error":"#N/A"},null,null,null,null,null,"BALBOA - CAUCA",19075]
[null,null,null,null,null,null,null,null,null,null,null,null,null,null,{"$error":"#N/A"},null,null,null,null,null,"BALBOA - RISARALDA",66075]
[null,null,null,null,null,null,null,null,null,null,null,null,null,null,{"$error":"#N/A"},null,null,null,null,null,"BARANOA",8078]
[null,null,null,null,null,null,null,null,null,null,null,null,null,null,{"$error":"#N/A"},null,null,null,null,null,"BARAYA",41078]
[null,null,null,null,null,null,null,null,null,null,null,null,null,null,{"$error":"#N/A"},null,null,null,null,null,"BARBACOAS",52079]
[null,null,null,null,null,null,null,null,null,null,null,null,null,null,{"$error":"#N/A"},null,null,null,null,null,"BARBOSA - ANTIOQUIA",5079]
[null,null,null,null,null,null,null,null,null,null,null,null,null,null,{"$error":"#N/A"},null,null,null,null,null,"BARBOSA - SANTANDER",68077]
[null,null,null,null,null,null,null,null,null,null,null,null,null,null,{"$error":"#N/A"},null,null,null,null,null,"BARICHARA",68079]
[null,null,null,null,null,null,null,null,null,null,null,null,null,null,{"$error":"#N/A"},null,null,null,null,null,"BARRANCA DE UPIA",50110]
[null,null,null,null,null,null,null,null,null,null,null,null,null,null,{"$error":"#N/A"},null,null,null,null,null,"BARRANCABERMEJA",68081]
[null,null,null,null,null,null,null,null,null,null,null,null,null,null,{"$error":"#N/A"},null,null,null,null,null,"BARRANCAS",44078]
[null,null,null,null,null,null,null,null,null,null,null,null,null,null,{"$error":"#N/A"},null,null,null,null,null,"BARRANCO DE LOBA",13074]
[null,null,null,null,null,null,null,null,null,null,null,null,null,null,{"$error":"#N/A"},null,null,null,null,null,"BARRANCO MINAS",94343]
[null,null,null,null,null,null,null,null,null,null,null,null,null,null,{"$error":"#N/A"},null,null,null,null,null,"BARRANQUILLA",8001]
[null,null,null,null,null,null,null,null,null,null,null,null,null,null,{"$error":"#N/A"},null,null,null,null,null,"BECERRIL",20045]
[null,null,null,null,null,null,null,null,null,null,null,null,null,null,{"$error":"#N/A"},null,null,null,null,null,"BELALCAZAR",17088]
[null,null,null,null,null,null,null,null,null,null,null,null,null,null,{"$error":"#N/A"},null,null,null,null,null,"BELEN - BOYACA",15087]
[null,null,null,null,null,null,null,null,null,null,null,null,null,null,{"$error":"#N/A"},null,null,null,null,null,"BELEN - NARINO",52083]
[null,null,null,null,null,null,null,null,null,null,null,null,null,null,{"$error":"#N/A"},null,null,null,null,null,"BELEN ANDAQUIES",18094]
[null,null,null,null,null,null,null,null,null,null,null,null,null,null,{"$error":"#N/A"},null,null,null,null,null,"BELEN DE UMBRIA",66088]
[null,null,null,null,null,null,null,null,null,null,null,null,null,null,{"$error":"#N/A"},null,null,null,null,null,"BELENCITO",15088]
[null,null,null,null,null,null,null,null,null,null,null,null,null,null,{"$error":"#N/A"},null,null,null,null,null,"BELLO",5088]
[null,null,null,null,null,null,null,null,null,null,null,null,null,null,{"$error":"#N/A"},null,null,null,null,null,"BELMIRA",5086]
[null,null,null,null,null,null,null,null,null,null,null,null,null,null,{"$error":"#N/A"},null,null,null,null,null,"BELTRAN",25086]
[null,null,null,null,null,null,null,null,null,null,null,null,null,null,{"$error":"#N/A"},null,null,null,null,null,"BERBEO",15090]
[null,null,null,null,null,null,null,null,null,null,null,null,null,null,{"$error":"#N/A"},null,null,null,null,null,"BETANIA",5091]
[null,null,null,null,null,null,null,null,null,null,null,null,null,null,{"$error":"#N/A"},null,null,null,null,null,"BETEITIVA",15092]
[null,null,null,null,null,null,null,null,null,null,null,null,null,null,{"$error":"#N/A"},null,null,null,null,null,"BETULIA - ANTIOQUIA",5093]
[null,null,null,null,null,null,null,null,null,null,null,null,null,null,{"$error":"#N/A"},null,null,null,null,null,"BETULIA - SANTANDER",68092]
[null,null,null,null,null,null,null,null,null,null,null,null,null,null,{"$error":"#N/A"},null,null,null,null,null,"BITUIMA",25095]
[null,null,null,null,null,null,null,null,null,null,null,null,null,null,{"$error":"#N/A"},null,null,null,null,null,"BOAVITA",15097]
[null,null,null,null,null,null,null,null,null,null,null,null,null,null,{"$error":"#N/A"},null,null,null,null,null,"BOCHALEMA",54099]
[null,null,null,null,null,null,null,null,null,null,null,null,null,null,{"$error":"#N/A"},null,null,null,null,null,"BOGOTA",11001]
[null,null,null,null,null,null,null,null,null,null,null,null,null,null,{"$error":"#N/A"},null,null,null,null,null,"BOJACA",25099]
[null,null,null,null,null,null,null,null,null,null,null,null,null,null,{"$error":"#N/A"},null,null,null,null,null,"BOJAYA (BELLAVISTA)",27099]
[null,null,null,null,null,null,null,null,null,null,null,null,null,null,{"$error":"#N/A"},null,null,null,null,null,"BOLIVAR - ANTIOQUIA",5101]
[null,null,null,null,null,null,null,null,null,null,null,null,null,null,{"$error":"#N/A"},null,null,null,null,null,"BOLIVAR - CAUCA",19100]
[null,null,null,null,null,null,null,null,null,null,null,null,null,null,{"$error":"#N/A"},null,null,null,null,null,"BOLIVAR - SANTANDER",68101]
[null,null,null,null,null,null,null,null,null,null,null,null,null,null,{"$error":"#N/A"},null,null,null,null,null,"BOLIVAR - VALLE",76100]
[null,null,null,null,null,null,null,null,null,null,null,null,null,null,{"$error":"#N/A"},null,null,null,null,null,"BOSA",25101]
[null,null,null,null,null,null,null,null,null,null,null,null,null,null,{"$error":"#N/A"},null,null,null,null,null,"BOSCONIA",20060]
[null,null,null,null,null,null,null,null,null,null,null,null,null,null,{"$error":"#N/A"},null,null,null,null,null,"BOYACA",15104]
[null,null,null,null,null,null,null,null,null,null,null,null,null,null,{"$error":"#N/A"},null,null,null,null,null,"BRICENO - ANTIOQUIA",5107]
[null,null,null,null,null,null,null,null,null,null,null,null,null,null,{"$error":"#N/A"},null,null,null,null,null,"BRICENO - BOYACA",15106]
[null,null,null,null,null,null,null,null,null,null,null,null,null,null,{"$error":"#N/A"},null,null,null,null,null,"BUCARAMANGA",68001]
[null,null,null,null,null,null,null,null,null,null,null,null,null,null,{"$error":"#N/A"},null,null,null,null,null,"BUCARASICA",54109]
[null,null,null,null,null,null,null,null,null,null,null,null,null,null,{"$error":"#N/A"},null,null,null,null,null,"BUENAVENTURA",76109]
[null,null,null,null,null,null,null,null,null,null,null,null,null,null,{"$error":"#N/A"},null,null,null,null,null,"BUENAVISTA",70110]
[null,null,null,null,null,null,null,null,null,null,null,null,null,null,{"$error":"#N/A"},null,null,null,null,null,"BUENAVISTA - BOYACA",15109]
[null,null,null,null,null,null,null,null,null,null,null,null,null,null,{"$error":"#N/A"},null,null,null,null,null,"BUENAVISTA - CORDOBA",23079]
[null,null,null,null,null,null,null,null,null,null,null,null,null,null,{"$error":"#N/A"},null,null,null,null,null,"BUENAVISTA - QUINDIO",63111]
[null,null,null,null,null,null,null,null,null,null,null,null,null,null,{"$error":"#N/A"},null,null,null,null,null,"BUENOS AIRES",19110]
[null,null,null,null,null,null,null,null,null,null,null,null,null,null,{"$error":"#N/A"},null,null,null,null,null,"BUESACO",52110]
[null,null,null,null,null,null,null,null,null,null,null,null,null,null,{"$error":"#N/A"},null,null,null,null,null,"BUGA",76111]
[null,null,null,null,null,null,null,null,null,null,null,null,null,null,{"$f":"VLOOKUP(K144,$U$16:$V$1123,2,0)","v":{"$error":"#N/A"}},null,null,null,null,null,"BUGALAGRANDE",76113]
[null,null,null,null,null,null,null,null,null,null,null,null,null,null,{"$error":"#N/A"},null,null,null,null,null,"BURITICA",5113]
[null,null,null,null,null,null,null,null,null,null,null,null,null,null,{"$error":"#N/A"},null,null,null,null,null,"BUSBANZA",15114]
[null,null,null,null,null,null,null,null,null,null,null,null,null,null,{"$error":"#N/A"},null,null,null,null,null,"CABRERA - CUNDINAMARCA",25120]
[null,null,null,null,null,null,null,null,null,null,null,null,null,null,{"$error":"#N/A"},null,null,null,null,null,"CABRERA - SANTANDER",68121]
[null,null,null,null,null,null,null,null,null,null,null,null,null,null,{"$error":"#N/A"},null,null,null,null,null,"CABUYARO",50124]
[null,null,null,null,null,null,null,null,null,null,null,null,null,null,{"$error":"#N/A"},null,null,null,null,null,"CACAHUAL",94886]
[null,null,null,null,null,null,null,null,null,null,null,null,null,null,{"$error":"#N/A"},null,null,null,null,null,"CACERES",5120]
[null,null,null,null,null,null,null,null,null,null,null,null,null,null,{"$error":"#N/A"},null,null,null,null,null,"CACHIPAY",25123]
[null,null,null,null,null,null,null,null,null,null,null,null,null,null,{"$error":"#N/A"},null,null,null,null,null,"CACHIRA",54128]
[null,null,null,null,null,null,null,null,null,null,null,null,null,null,{"$error":"#N/A"},null,null,null,null,null,"CACOTA",54125]
[null,null,null,null,null,null,null,null,null,null,null,null,null,null,{"$error":"#N/A"},null,null,null,null,null,"CAICEDO",5125]
[null,null,null,null,null,null,null,null,null,null,null,null,null,null,{"$error":"#N/A"},null,null,null,null,null,"CAICEDONIA",76122]
[null,null,null,null,null,null,null,null,null,null,null,null,null,null,{"$error":"#N/A"},null,null,null,null,null,"CAIMITO",70124]
[null,null,null,null,null,null,null,null,null,null,null,null,null,null,{"$error":"#N/A"},null,null,null,null,null,"CAJAMARCA",73124]
[null,null,null,null,null,null,null,null,null,null,null,null,null,null,{"$error":"#N/A"},null,null,null,null,null,"CAJIBIO",19130]
[null,null,null,null,null,null,null,null,null,null,null,null,null,null,{"$error":"#N/A"},null,null,null,null,null,"CAJICA",25126]
[null,null,null,null,null,null,null,null,null,null,null,null,null,null,{"$error":"#N/A"},null,null,null,null,null,"CALAMAR - BOLIVAR",13140]
[null,null,null,null,null,null,null,null,null,null,null,null,null,null,{"$error":"#N/A"},null,null,null,null,null,"CALAMAR - GUAVIARE",95015]
[null,null,null,null,null,null,null,null,null,null,null,null,null,null,{"$error":"#N/A"},null,null,null,null,null,"CALARCA",63130]
[null,null,null,null,null,null,null,null,null,null,null,null,null,null,{"$error":"#N/A"},null,null,null,null,null,"CALDAS - ANTIOQUIA",5129]
[null,null,null,null,null,null,null,null,null,null,null,null,null,null,{"$error":"#N/A"},null,null,null,null,null,"CALDAS - BOYACA",15131]
[null,null,null,null,null,null,null,null,null,null,null,null,null,null,{"$error":"#N/A"},null,null,null,null,null,"CALDONO",19137]
[null,null,null,null,null,null,null,null,null,null,null,null,null,null,{"$error":"#N/A"},null,null,null,null,null,"CALI",76001]
[null,null,null,null,null,null,null,null,null,null,null,null,null,null,{"$error":"#N/A"},null,null,null,null,null,"CALIFORNIA",68132]
[null,null,null,null,null,null,null,null,null,null,null,null,null,null,{"$error":"#N/A"},null,null,null,null,null,"CALIMA (DARIEN)",76126]
[null,null,null,null,null,null,null,null,null,null,null,null,null,null,{"$error":"#N/A"},null,null,null,null,null,"CALOTO",19142]
[null,null,null,null,null,null,null,null,null,null,null,null,null,null,{"$error":"#N/A"},null,null,null,null,null,"CAMPAMENTO",5134]
[null,null,null,null,null,null,null,null,null,null,null,null,null,null,{"$error":"#N/A"},null,null,null,null,null,"CAMPO DE LA CRUZ",8137]
[null,null,null,null,null,null,null,null,null,null,null,null,null,null,{"$error":"#N/A"},null,null,null,null,null,"CAMPOALEGRE",41132]
[null,null,null,null,null,null,null,null,null,null,null,null,null,null,{"$error":"#N/A"},null,null,null,null,null,"CAMPOHERMOSO",15135]
[null,null,null,null,null,null,null,null,null,null,null,null,null,null,{"$error":"#N/A"},null,null,null,null,null,"CANALETE",23090]
[null,null,null,null,null,null,null,null,null,null,null,null,null,null,{"$error":"#N/A"},null,null,null,null,null,"CANDELARIA - ATLANTICO",8141]
[null,null,null,null,null,null,null,null,null,null,null,null,null,null,{"$error":"#N/A"},null,null,null,null,null,"CANDELARIA - VALLE",76130]
[null,null,null,null,null,null,null,null,null,null,null,null,null,null,{"$error":"#N/A"},null,null,null,null,null,"CANTAGALLO",13160]
[null,null,null,null,null,null,null,null,null,null,null,null,null,null,{"$error":"#N/A"},null,null,null,null,null,"CANTON DE SAN PABLO",27135]
[null,null,null,null,null,null,null,null,null,null,null,null,null,null,{"$error":"#N/A"},null,null,null,null,null,"CANASGORDAS",5138]
[null,null,null,null,null,null,null,null,null,null,null,null,null,null,{"$error":"#N/A"},null,null,null,null,null,"CAPARRAPI",25148]
[null,null,null,null,null,null,null,null,null,null,null,null,null,null,{"$error":"#N/A"},null,null,null,null,null,"CAPITANEJO",68147]
[null,null,null,null,null,null,null,null,null,null,null,null,null,null,{"$error":"#N/A"},null,null,null,null,null,"CAQUEZA",25151]
[null,null,null,null,null,null,null,null,null,null,null,null,null,null,{"$error":"#N/A"},null,null,null,null,null,"CARACOLI",5142]
[null,null,null,null,null,null,null,null,null,null,null,null,null,null,{"$error":"#N/A"},null,null,null,null,null,"CARAMANTA",5145]
[null,null,null,null,null,null,null,null,null,null,null,null,null,null,{"$error":"#N/A"},null,null,null,null,null,"CARCASI",68152]
[null,null,null,null,null,null,null,null,null,null,null,null,null,null,{"$error":"#N/A"},null,null,null,null,null,"CAREPA",5147]
[null,null,null,null,null,null,null,null,null,null,null,null,null,null,{"$error":"#N/A"},null,null,null,null,null,"CARMEN APICALA",73148]
[null,null,null,null,null,null,null,null,null,null,null,null,null,null,{"$error":"#N/A"},null,null,null,null,null,"CARMEN DE CARUPA",25154]
[null,null,null,null,null,null,null,null,null,null,null,null,null,null,{"$error":"#N/A"},null,null,null,null,null,"CARMEN DE VIBORAL",5148]
[null,null,null,null,null,null,null,null,null,null,null,null,null,null,{"$error":"#N/A"},null,null,null,null,null,"CAROLINA",5150]
[null,null,null,null,null,null,null,null,null,null,null,null,null,null,{"$error":"#N/A"},null,null,null,null,null,"CARTAGENA",13001]
[null,null,null,null,null,null,null,null,null,null,null,null,null,null,{"$error":"#N/A"},null,null,null,null,null,"CARTAGENA DEL CHAIRA",18150]
[null,null,null,null,null,null,null,null,null,null,null,null,null,null,{"$error":"#N/A"},null,null,null,null,null,"CARTAGO",76147]
[null,null,null,null,null,null,null,null,null,null,null,null,null,null,{"$error":"#N/A"},null,null,null,null,null,"CARURU",97161]
[null,null,null,null,null,null,null,null,null,null,null,null,null,null,{"$error":"#N/A"},null,null,null,null,null,"CASABIANCA",73152]
[null,null,null,null,null,null,null,null,null,null,null,null,null,null,{"$error":"#N/A"},null,null,null,null,null,"CASTILLA LA NUEVA",50150]
[null,null,null,null,null,null,null,null,null,null,null,null,null,null,{"$error":"#N/A"},null,null,null,null,null,"CAUCASIA",5154]
[null,null,null,null,null,null,null,null,null,null,null,null,null,null,{"$error":"#N/A"},null,null,null,null,null,"CEPITA",68160]
[null,null,null,null,null,null,null,null,null,null,null,null,null,null,{"$error":"#N/A"},null,null,null,null,null,"CERETE",23162]
[null,null,null,null,null,null,null,null,null,null,null,null,null,null,{"$error":"#N/A"},null,null,null,null,null,"CERINZA",15162]
[null,null,null,null,null,null,null,null,null,null,null,null,null,null,{"$error":"#N/A"},null,null,null,null,null,"CERRITO",68162]
[null,null,null,null,null,null,null,null,null,null,null,null,null,null,{"$error":"#N/A"},null,null,null,null,null,"CERRO SAN ANTONIO",47161]
[null,null,null,null,null,null,null,null,null,null,null,null,null,null,{"$error":"#N/A"},null,null,null,null,null,"CHACHAGUI",52240]
[null,null,null,null,null,null,null,null,null,null,null,null,null,null,{"$error":"#N/A"},null,null,null,null,null,"CHAGUANI",25168]
[null,null,null,null,null,null,null,null,null,null,null,null,null,null,{"$error":"#N/A"},null,null,null,null,null,"CHALAN",70230]
[null,null,null,null,null,null,null,null,null,null,null,null,null,null,{"$error":"#N/A"},null,null,null,null,null,"CHAMEZA",85015]
[null,null,null,null,null,null,null,null,null,null,null,null,null,null,{"$f":"VLOOKUP(K208,$U$16:$V$1123,2,0)","v":{"$error":"#N/A"}},null,null,null,null,null,"CHAPARRAL",73168]
[null,null,null,null,null,null,null,null,null,null,null,null,null,null,{"$error":"#N/A"},null,null,null,null,null,"CHARALA",68167]
[null,null,null,null,null,null,null,null,null,null,null,null,null,null,{"$error":"#N/A"},null,null,null,null,null,"CHARTA",68169]
[null,null,null,null,null,null,null,null,null,null,null,null,null,null,{"$error":"#N/A"},null,null,null,null,null,"CHIA",25175]
[null,null,null,null,null,null,null,null,null,null,null,null,null,null,{"$error":"#N/A"},null,null,null,null,null,"CHIGORODO",5172]
[null,null,null,null,null,null,null,null,null,null,null,null,null,null,{"$error":"#N/A"},null,null,null,null,null,"CHIMA - CORDOBA",23168]
[null,null,null,null,null,null,null,null,null,null,null,null,null,null,{"$error":"#N/A"},null,null,null,null,null,"CHIMA - SANTANDER",68176]
[null,null,null,null,null,null,null,null,null,null,null,null,null,null,{"$error":"#N/A"},null,null,null,null,null,"CHIMICHAGUA",20175]
[null,null,null,null,null,null,null,null,null,null,null,null,null,null,{"$error":"#N/A"},null,null,null,null,null,"CHINACOTA",54172]
[null,null,null,null,null,null,null,null,null,null,null,null,null,null,{"$error":"#N/A"},null,null,null,null,null,"CHINAVITA",15172]
[null,null,null,null,null,null,null,null,null,null,null,null,null,null,{"$error":"#N/A"},null,null,null,null,null,"CHINCHINA",17174]
[null,null,null,null,null,null,null,null,null,null,null,null,null,null,{"$error":"#N/A"},null,null,null,null,null,"CHINU",23182]
[null,null,null,null,null,null,null,null,null,null,null,null,null,null,{"$error":"#N/A"},null,null,null,null,null,"CHIPAQUE",25178]
[null,null,null,null,null,null,null,null,null,null,null,null,null,null,{"$error":"#N/A"},null,null,null,null,null,"CHIPATA",68179]
[null,null,null,null,null,null,null,null,null,null,null,null,null,null,{"$error":"#N/A"},null,null,null,null,null,"CHIQUINQUIRA",15176]
[null,null,null,null,null,null,null,null,null,null,null,null,null,null,{"$error":"#N/A"},null,null,null,null,null,"CHIQUIZA",15232]
[null,null,null,null,null,null,null,null,null,null,null,null,null,null,{"$error":"#N/A"},null,null,null,null,null,"CHIRIGUANA",20178]
[null,null,null,null,null,null,null,null,null,null,null,null,null,null,{"$error":"#N/A"},null,null,null,null,null,"CHISCAS",15180]
[null,null,null,null,null,null,null,null,null,null,null,null,null,null,{"$error":"#N/A"},null,null,null,null,null,"CHITA",15183]
[null,null,null,null,null,null,null,null,null,null,null,null,null,null,{"$error":"#N/A"},null,null,null,null,null,"CHITAGA",54174]
[null,null,null,null,null,null,null,null,null,null,null,null,null,null,{"$error":"#N/A"},null,null,null,null,null,"CHITARAQUE",15185]
[null,null,null,null,null,null,null,null,null,null,null,null,null,null,{"$error":"#N/A"},null,null,null,null,null,"CHIVATA",15187]
[null,null,null,null,null,null,null,null,null,null,null,null,null,null,{"$error":"#N/A"},null,null,null,null,null,"CHIVOLO",47170]
[null,null,null,null,null,null,null,null,null,null,null,null,null,null,{"$error":"#N/A"},null,null,null,null,null,"CHIVOR",15236]
[null,null,null,null,null,null,null,null,null,null,null,null,null,null,{"$error":"#N/A"},null,null,null,null,null,"CHOACHI",25181]
[null,null,null,null,null,null,null,null,null,null,null,null,null,null,{"$error":"#N/A"},null,null,null,null,null,"CHOCONTA",25183]
[null,null,null,null,null,null,null,null,null,null,null,null,null,null,{"$error":"#N/A"},null,null,null,null,null,"CICUCO",13188]
[null,null,null,null,null,null,null,null,null,null,null,null,null,null,{"$error":"#N/A"},null,null,null,null,null,"CIENAGA",47189]
[null,null,null,null,null,null,null,null,null,null,null,null,null,null,{"$error":"#N/A"},null,null,null,null,null,"CIENAGA DE ORO",23189]
[null,null,null,null,null,null,null,null,null,null,null,null,null,null,{"$error":"#N/A"},null,null,null,null,null,"CIENEGA",15189]
[null,null,null,null,null,null,null,null,null,null,null,null,null,null,{"$error":"#N/A"},null,null,null,null,null,"CIMITARRA",68190]
[null,null,null,null,null,null,null,null,null,null,null,null,null,null,{"$error":"#N/A"},null,null,null,null,null,"CIRCASIA",63190]
[null,null,null,null,null,null,null,null,null,null,null,null,null,null,{"$error":"#N/A"},null,null,null,null,null,"CISNEROS",5190]
[null,null,null,null,null,null,null,null,null,null,null,null,null,null,{"$error":"#N/A"},null,null,null,null,null,"CLEMENCIA",13222]
[null,null,null,null,null,null,null,null,null,null,null,null,null,null,{"$error":"#N/A"},null,null,null,null,null,"COCORNA",5197]
[null,null,null,null,null,null,null,null,null,null,null,null,null,null,{"$error":"#N/A"},null,null,null,null,null,"COELLO",73200]
[null,null,null,null,null,null,null,null,null,null,null,null,null,null,{"$error":"#N/A"},null,null,null,null,null,"COGUA",25200]
[null,null,null,null,null,null,null,null,null,null,null,null,null,null,{"$error":"#N/A"},null,null,null,null,null,"COLOMBIA",41206]
[null,null,null,null,null,null,null,null,null,null,null,null,null,null,{"$error":"#N/A"},null,null,null,null,null,"COLON",86219]
[null,null,null,null,null,null,null,null,null,null,null,null,null,null,{"$error":"#N/A"},null,null,null,null,null,"COLON(GENOVA)",52203]
[null,null,null,null,null,null,null,null,null,null,null,null,null,null,{"$error":"#N/A"},null,null,null,null,null,"COLOSO",70204]
[null,null,null,null,null,null,null,null,null,null,null,null,null,null,{"$error":"#N/A"},null,null,null,null,null,"COMBITA",15204]
[null,null,null,null,null,null,null,null,null,null,null,null,null,null,{"$error":"#N/A"},null,null,null,null,null,"CONCEPCION - ANTIOQUIA",5206]
[null,null,null,null,null,null,null,null,null,null,null,null,null,null,{"$error":"#N/A"},null,null,null,null,null,"CONCEPCION - SANTANDER",68207]
[null,null,null,null,null,null,null,null,null,null,null,null,null,null,{"$error":"#N/A"},null,null,null,null,null,"CONCORDIA",5209]
[null,null,null,null,null,null,null,null,null,null,null,null,null,null,{"$error":"#N/A"},null,null,null,null,null,"CONCORDIA - MAGDALENA",47205]
[null,null,null,null,null,null,null,null,null,null,null,null,null,null,{"$error":"#N/A"},null,null,null,null,null,"CONDOTO",27205]
[null,null,null,null,null,null,null,null,null,null,null,null,null,null,{"$error":"#N/A"},null,null,null,null,null,"CONFINES",68209]
[null,null,null,null,null,null,null,null,null,null,null,null,null,null,{"$error":"#N/A"},null,null,null,null,null,"CONSACA",52207]
[null,null,null,null,null,null,null,null,null,null,null,null,null,null,{"$error":"#N/A"},null,null,null,null,null,"CONTADERO",52210]
[null,null,null,null,null,null,null,null,null,null,null,null,null,null,{"$error":"#N/A"},null,null,null,null,null,"CONTRATACION",68211]
[null,null,null,null,null,null,null,null,null,null,null,null,null,null,{"$error":"#N/A"},null,null,null,null,null,"CONVENCION",54206]
[null,null,null,null,null,null,null,null,null,null,null,null,null,null,{"$error":"#N/A"},null,null,null,null,null,"COPACABANA",5212]
[null,null,null,null,null,null,null,null,null,null,null,null,null,null,{"$error":"#N/A"},null,null,null,null,null,"COPER",15212]
[null,null,null,null,null,null,null,null,null,null,null,null,null,null,{"$error":"#N/A"},null,null,null,null,null,"CORDOBA",63212]
[null,null,null,null,null,null,null,null,null,null,null,null,null,null,{"$error":"#N/A"},null,null,null,null,null,"CORDOBA - BOLIVAR",13212]
[null,null,null,null,null,null,null,null,null,null,null,null,null,null,{"$error":"#N/A"},null,null,null,null,null,"CORDOBA - NARINO",52215]
[null,null,null,null,null,null,null,null,null,null,null,null,null,null,{"$error":"#N/A"},null,null,null,null,null,"CORINTO",19212]
[null,null,null,null,null,null,null,null,null,null,null,null,null,null,{"$error":"#N/A"},null,null,null,null,null,"COROMORO",68217]
[null,null,null,null,null,null,null,null,null,null,null,null,null,null,{"$error":"#N/A"},null,null,null,null,null,"COROZAL",70215]
[null,null,null,null,null,null,null,null,null,null,null,null,null,null,{"$error":"#N/A"},null,null,null,null,null,"CORRALES",15215]
[null,null,null,null,null,null,null,null,null,null,null,null,null,null,{"$error":"#N/A"},null,null,null,null,null,"COTA",25214]
[null,null,null,null,null,null,null,null,null,null,null,null,null,null,{"$error":"#N/A"},null,null,null,null,null,"COTORRA",23300]
[null,null,null,null,null,null,null,null,null,null,null,null,null,null,{"$error":"#N/A"},null,null,null,null,null,"COVARACHIA",15218]
[null,null,null,null,null,null,null,null,null,null,null,null,null,null,{"$f":"VLOOKUP(K272,$U$16:$V$1123,2,0)","v":{"$error":"#N/A"}},null,null,null,null,null,"COYAIMA",73217]
[null,null,null,null,null,null,null,null,null,null,null,null,null,null,{"$error":"#N/A"},null,null,null,null,null,"CRAVO NORTE",81220]
[null,null,null,null,null,null,null,null,null,null,null,null,null,null,{"$error":"#N/A"},null,null,null,null,null,"CUASPUD",52224]
[null,null,null,null,null,null,null,null,null,null,null,null,null,null,{"$error":"#N/A"},null,null,null,null,null,"CUBARA",15223]
[null,null,null,null,null,null,null,null,null,null,null,null,null,null,{"$error":"#N/A"},null,null,null,null,null,"CUBARRAL1",50223]
[null,null,null,null,null,null,null,null,null,null,null,null,null,null,{"$error":"#N/A"},null,null,null,null,null,"CUCAITA",15224]
[null,null,null,null,null,null,null,null,null,null,null,null,null,null,{"$error":"#N/A"},null,null,null,null,null,"CUCUNUBA",25224]
[null,null,null,null,null,null,null,null,null,null,null,null,null,null,{"$error":"#N/A"},null,null,null,null,null,"CUCUTA",54001]
[null,null,null,null,null,null,null,null,null,null,null,null,null,null,{"$error":"#N/A"},null,null,null,null,null,"CUCUTILLA",54223]
[null,null,null,null,null,null,null,null,null,null,null,null,null,null,{"$error":"#N/A"},null,null,null,null,null,"CUITIVA",15226]
[null,null,null,null,null,null,null,null,null,null,null,null,null,null,{"$error":"#N/A"},null,null,null,null,null,"CUMARAL",50226]
[null,null,null,null,null,null,null,null,null,null,null,null,null,null,{"$error":"#N/A"},null,null,null,null,null,"CUMARIBO",99773]
[null,null,null,null,null,null,null,null,null,null,null,null,null,null,{"$error":"#N/A"},null,null,null,null,null,"CUMBAL",52227]
[null,null,null,null,null,null,null,null,null,null,null,null,null,null,{"$error":"#N/A"},null,null,null,null,null,"CUMBITARA",52233]
[null,null,null,null,null,null,null,null,null,null,null,null,null,null,{"$error":"#N/A"},null,null,null,null,null,"CUNDAY",73226]
[null,null,null,null,null,null,null,null,null,null,null,null,null,null,{"$error":"#N/A"},null,null,null,null,null,"CURILLO",18205]
[null,null,null,null,null,null,null,null,null,null,null,null,null,null,{"$error":"#N/A"},null,null,null,null,null,"CURITI",68229]
[null,null,null,null,null,null,null,null,null,null,null,null,null,null,{"$error":"#N/A"},null,null,null,null,null,"CURUMANI",20228]
[null,null,null,null,null,null,null,null,null,null,null,null,null,null,{"$error":"#N/A"},null,null,null,null,null,"DABEIBA",5234]
[null,null,null,null,null,null,null,null,null,null,null,null,null,null,{"$error":"#N/A"},null,null,null,null,null,"DAGUA",76233]
[null,null,null,null,null,null,null,null,null,null,null,null,null,null,{"$error":"#N/A"},null,null,null,null,null,"DIBULLA",44090]
[null,null,null,null,null,null,null,null,null,null,null,null,null,null,{"$error":"#N/A"},null,null,null,null,null,"DISTRACCION",44098]
[null,null,null,null,null,null,null,null,null,null,null,null,null,null,{"$error":"#N/A"},null,null,null,null,null,"DOLORES",73236]
[null,null,null,null,null,null,null,null,null,null,null,null,null,null,{"$error":"#N/A"},null,null,null,null,null,"DON MATIAS",5237]
[null,null,null,null,null,null,null,null,null,null,null,null,null,null,{"$error":"#N/A"},null,null,null,null,null,"DOS QUEBRADAS",66170]
[null,null,null,null,null,null,null,null,null,null,null,null,null,null,{"$error":"#N/A"},null,null,null,null,null,"DUITAMA",15238]
[null,null,null,null,null,null,null,null,null,null,null,null,null,null,{"$error":"#N/A"},null,null,null,null,null,"DURANIA",54239]
[null,null,null,null,null,null,null,null,null,null,null,null,null,null,{"$error":"#N/A"},null,null,null,null,null,"EBEJICO",5240]
[null,null,null,null,null,null,null,null,null,null,null,null,null,null,{"$error":"#N/A"},null,null,null,null,null,"EL AGUILA",76243]
[null,null,null,null,null,null,null,null,null,null,null,null,null,null,{"$error":"#N/A"},null,null,null,null,null,"EL BAGRE",5250]
[null,null,null,null,null,null,null,null,null,null,null,null,null,null,{"$error":"#N/A"},null,null,null,null,null,"EL BANCO",47245]
[null,null,null,null,null,null,null,null,null,null,null,null,null,null,{"$error":"#N/A"},null,null,null,null,null,"EL CAIRO",76246]
[null,null,null,null,null,null,null,null,null,null,null,null,null,null,{"$error":"#N/A"},null,null,null,null,null,"EL CALVARIO",50245]
[null,null,null,null,null,null,null,null,null,null,null,null,null,null,{"$error":"#N/A"},null,null,null,null,null,"EL CARMEN - CHOCO",27245]
[null,null,null,null,null,null,null,null,null,null,null,null,null,null,{"$error":"#N/A"},null,null,null,null,null,"EL CARMEN - N. SANTANDER",54245]
[null,null,null,null,null,null,null,null,null,null,null,null,null,null,{"$error":"#N/A"},null,null,null,null,null,"EL CARMEN - SANTANDER",68235]
[null,null,null,null,null,null,null,null,null,null,null,null,null,null,{"$error":"#N/A"},null,null,null,null,null,"EL CARMEN DE BOLIVAR",13244]
[null,null,null,null,null,null,null,null,null,null,null,null,null,null,{"$error":"#N/A"},null,null,null,null,null,"EL CASTILLO",50251]
[null,null,null,null,null,null,null,null,null,null,null,null,null,null,{"$error":"#N/A"},null,null,null,null,null,"EL CERRITO",76248]
[null,null,null,null,null,null,null,null,null,null,null,null,null,null,{"$error":"#N/A"},null,null,null,null,null,"EL CHARCO",52250]
[null,null,null,null,null,null,null,null,null,null,null,null,null,null,{"$error":"#N/A"},null,null,null,null,null,"EL COCUY",15244]
[null,null,null,null,null,null,null,null,null,null,null,null,null,null,{"$error":"#N/A"},null,null,null,null,null,"EL COLEGIO",25245]
[null,null,null,null,null,null,null,null,null,null,null,null,null,null,{"$error":"#N/A"},null,null,null,null,null,"EL COPEY",20238]
[null,null,null,null,null,null,null,null,null,null,null,null,null,null,{"$error":"#N/A"},null,null,null,null,null,"EL DONCELLO",18247]
[null,null,null,null,null,null,null,null,null,null,null,null,null,null,{"$error":"#N/A"},null,null,null,null,null,"EL DORADO",50270]
[null,null,null,null,null,null,null,null,null,null,null,null,null,null,{"$error":"#N/A"},null,null,null,null,null,"EL DOVIO",76250]
[null,null,null,null,null,null,null,null,null,null,null,null,null,null,{"$error":"#N/A"},null,null,null,null,null,"EL ENCANTO",91263]
[null,null,null,null,null,null,null,null,null,null,null,null,null,null,{"$error":"#N/A"},null,null,null,null,null,"EL ESPINO",15248]
[null,null,null,null,null,null,null,null,null,null,null,null,null,null,{"$error":"#N/A"},null,null,null,null,null,"EL GUACAMAYO",68245]
[null,null,null,null,null,null,null,null,null,null,null,null,null,null,{"$error":"#N/A"},null,null,null,null,null,"EL GUAMO",13248]
[null,null,null,null,null,null,null,null,null,null,null,null,null,null,{"$error":"#N/A"},null,null,null,null,null,"EL LITORAL DEL SAN JUAN",27250]
[null,null,null,null,null,null,null,null,null,null,null,null,null,null,{"$error":"#N/A"},null,null,null,null,null,"EL MOLINO",44110]
[null,null,null,null,null,null,null,null,null,null,null,null,null,null,{"$error":"#N/A"},null,null,null,null,null,"EL PASO",20250]
[null,null,null,null,null,null,null,null,null,null,null,null,null,null,{"$error":"#N/A"},null,null,null,null,null,"EL PAUJIL",18256]
[null,null,null,null,null,null,null,null,null,null,null,null,null,null,{"$error":"#N/A"},null,null,null,null,null,"EL PENOL - NARINO",52254]
[null,null,null,null,null,null,null,null,null,null,null,null,null,null,{"$error":"#N/A"},null,null,null,null,null,"EL PENON",68250]
[null,null,null,null,null,null,null,null,null,null,null,null,null,null,{"$error":"#N/A"},null,null,null,null,null,"EL PENON - BOLIVAR",13268]
[null,null,null,null,null,null,null,null,null,null,null,null,null,null,{"$error":"#N/A"},null,null,null,null,null,"EL PENON - CUNDINAMARCA",25258]
[null,null,null,null,null,null,null,null,null,null,null,null,null,null,{"$error":"#N/A"},null,null,null,null,null,"EL PINON",47258]
[null,null,null,null,null,null,null,null,null,null,null,null,null,null,{"$error":"#N/A"},null,null,null,null,null,"EL PLAYON",68255]
[null,null,null,null,null,null,null,null,null,null,null,null,null,null,{"$error":"#N/A"},null,null,null,null,null,"EL RETEN",47268]
[null,null,null,null,null,null,null,null,null,null,null,null,null,null,{"$error":"#N/A"},null,null,null,null,null,"EL RETORNO",95025]
[null,null,null,null,null,null,null,null,null,null,null,null,null,null,{"$error":"#N/A"},null,null,null,null,null,"EL ROSAL",25260]
[null,null,null,null,null,null,null,null,null,null,null,null,null,null,{"$error":"#N/A"},null,null,null,null,null,"EL ROSARIO",52256]
[null,null,null,null,null,null,null,null,null,null,null,null,null,null,{"$f":"VLOOKUP(K336,$U$16:$V$1123,2,0)","v":{"$error":"#N/A"}},null,null,null,null,null,"EL TABLON",52258]
[null,null,null,null,null,null,null,null,null,null,null,null,null,null,{"$error":"#N/A"},null,null,null,null,null,"EL TAMBO - CAUCA",19256]
[null,null,null,null,null,null,null,null,null,null,null,null,null,null,{"$error":"#N/A"},null,null,null,null,null,"EL TAMBO - NARINO",52260]
[null,null,null,null,null,null,null,null,null,null,null,null,null,null,{"$error":"#N/A"},null,null,null,null,null,"EL TARRA",54250]
[null,null,null,null,null,null,null,null,null,null,null,null,null,null,{"$error":"#N/A"},null,null,null,null,null,"EL ZULIA",54261]
[null,null,null,null,null,null,null,null,null,null,null,null,null,null,{"$error":"#N/A"},null,null,null,null,null,"ELIAS",41244]
[null,null,null,null,null,null,null,null,null,null,null,null,null,null,{"$error":"#N/A"},null,null,null,null,null,"ENCINO",68264]
[null,null,null,null,null,null,null,null,null,null,null,null,null,null,{"$error":"#N/A"},null,null,null,null,null,"ENCISO",68266]
[null,null,null,null,null,null,null,null,null,null,null,null,null,null,{"$error":"#N/A"},null,null,null,null,null,"ENTRERRIOS",5264]
[null,null,null,null,null,null,null,null,null,null,null,null,null,null,{"$error":"#N/A"},null,null,null,null,null,"ENVIGADO",5266]
[null,null,null,null,null,null,null,null,null,null,null,null,null,null,{"$error":"#N/A"},null,null,null,null,null,"ESPINAL",73268]
[null,null,null,null,null,null,null,null,null,null,null,null,null,null,{"$error":"#N/A"},null,null,null,null,null,"FACATATIVA",25269]
[null,null,null,null,null,null,null,null,null,null,null,null,null,null,{"$error":"#N/A"},null,null,null,null,null,"FALAN",73270]
[null,null,null,null,null,null,null,null,null,null,null,null,null,null,{"$error":"#N/A"},null,null,null,null,null,"FILADELFIA",17272]
[null,null,null,null,null,null,null,null,null,null,null,null,null,null,{"$error":"#N/A"},null,null,null,null,null,"FILANDIA",63272]
[null,null,null,null,null,null,null,null,null,null,null,null,null,null,{"$error":"#N/A"},null,null,null,null,null,"FIRAVITOBA",15272]
[null,null,null,null,null,null,null,null,null,null,null,null,null,null,{"$error":"#N/A"},null,null,null,null,null,"FLANDES",73275]
[null,null,null,null,null,null,null,null,null,null,null,null,null,null,{"$error":"#N/A"},null,null,null,null,null,"FLORENCIA - CAQUETA",18001]
[null,null,null,null,null,null,null,null,null,null,null,null,null,null,{"$error":"#N/A"},null,null,null,null,null,"FLORENCIA - CAUCA",19290]
[null,null,null,null,null,null,null,null,null,null,null,null,null,null,{"$error":"#N/A"},null,null,null,null,null,"FLORESTA",15276]
[null,null,null,null,null,null,null,null,null,null,null,null,null,null,{"$error":"#N/A"},null,null,null,null,null,"FLORIAN",68271]
[null,null,null,null,null,null,null,null,null,null,null,null,null,null,{"$error":"#N/A"},null,null,null,null,null,"FLORIDA",76275]
[null,null,null,null,null,null,null,null,null,null,null,null,null,null,{"$error":"#N/A"},null,null,null,null,null,"FLORIDABLANCA",68276]
[null,null,null,null,null,null,null,null,null,null,null,null,null,null,{"$error":"#N/A"},null,null,null,null,null,"FOMEQUE",25279]
[null,null,null,null,null,null,null,null,null,null,null,null,null,null,{"$error":"#N/A"},null,null,null,null,null,"FONSECA",44279]
[null,null,null,null,null,null,null,null,null,null,null,null,null,null,{"$error":"#N/A"},null,null,null,null,null,"FORTUL",81300]
[null,null,null,null,null,null,null,null,null,null,null,null,null,null,{"$error":"#N/A"},null,null,null,null,null,"FOSCA",25281]
[null,null,null,null,null,null,null,null,null,null,null,null,null,null,{"$error":"#N/A"},null,null,null,null,null,"FREDONIA",5282]
[null,null,null,null,null,null,null,null,null,null,null,null,null,null,{"$error":"#N/A"},null,null,null,null,null,"FRESNO",73283]
[null,null,null,null,null,null,null,null,null,null,null,null,null,null,{"$error":"#N/A"},null,null,null,null,null,"FRONTINO",5284]
[null,null,null,null,null,null,null,null,null,null,null,null,null,null,{"$error":"#N/A"},null,null,null,null,null,"FUENTE DE ORO",50287]
[null,null,null,null,null,null,null,null,null,null,null,null,null,null,{"$error":"#N/A"},null,null,null,null,null,"FUNDACION",47288]
[null,null,null,null,null,null,null,null,null,null,null,null,null,null,{"$error":"#N/A"},null,null,null,null,null,"FUNES",52287]
[null,null,null,null,null,null,null,null,null,null,null,null,null,null,{"$error":"#N/A"},null,null,null,null,null,"FUNZA",25286]
[null,null,null,null,null,null,null,null,null,null,null,null,null,null,{"$error":"#N/A"},null,null,null,null,null,"FUQUENE",25288]
[null,null,null,null,null,null,null,null,null,null,null,null,null,null,{"$error":"#N/A"},null,null,null,null,null,"FUSAGASUGA",25290]
[null,null,null,null,null,null,null,null,null,null,null,null,null,null,{"$error":"#N/A"},null,null,null,null,null,"GACHALA",25293]
[null,null,null,null,null,null,null,null,null,null,null,null,null,null,{"$error":"#N/A"},null,null,null,null,null,"GACHANCIPA",25295]
[null,null,null,null,null,null,null,null,null,null,null,null,null,null,{"$error":"#N/A"},null,null,null,null,null,"GACHANTIVA",15293]
[null,null,null,null,null,null,null,null,null,null,null,null,null,null,{"$error":"#N/A"},null,null,null,null,null,"GACHETA",25297]
[null,null,null,null,null,null,null,null,null,null,null,null,null,null,{"$error":"#N/A"},null,null,null,null,null,"GALAN",68296]
[null,null,null,null,null,null,null,null,null,null,null,null,null,null,{"$error":"#N/A"},null,null,null,null,null,"GALAPA",8296]
[null,null,null,null,null,null,null,null,null,null,null,null,null,null,{"$error":"#N/A"},null,null,null,null,null,"GALERAS",70235]
[null,null,null,null,null,null,null,null,null,null,null,null,null,null,{"$error":"#N/A"},null,null,null,null,null,"GAMA",25299]
[null,null,null,null,null,null,null,null,null,null,null,null,null,null,{"$error":"#N/A"},null,null,null,null,null,"GAMARRA",20295]
[null,null,null,null,null,null,null,null,null,null,null,null,null,null,{"$error":"#N/A"},null,null,null,null,null,"GAMBITA",68298]
[null,null,null,null,null,null,null,null,null,null,null,null,null,null,{"$error":"#N/A"},null,null,null,null,null,"GAMEZA",15296]
[null,null,null,null,null,null,null,null,null,null,null,null,null,null,{"$error":"#N/A"},null,null,null,null,null,"GARAGOA",15299]
[null,null,null,null,null,null,null,null,null,null,null,null,null,null,{"$error":"#N/A"},null,null,null,null,null,"GARZON",41298]
[null,null,null,null,null,null,null,null,null,null,null,null,null,null,{"$error":"#N/A"},null,null,null,null,null,"GENOVA",63302]
[null,null,null,null,null,null,null,null,null,null,null,null,null,null,{"$error":"#N/A"},null,null,null,null,null,"GIGANTE",41306]
[null,null,null,null,null,null,null,null,null,null,null,null,null,null,{"$error":"#N/A"},null,null,null,null,null,"GINEBRA",76306]
[null,null,null,null,null,null,null,null,null,null,null,null,null,null,{"$error":"#N/A"},null,null,null,null,null,"GIRALDO",5306]
[null,null,null,null,null,null,null,null,null,null,null,null,null,null,{"$error":"#N/A"},null,null,null,null,null,"GIRARDOT",25307]
[null,null,null,null,null,null,null,null,null,null,null,null,null,null,{"$error":"#N/A"},null,null,null,null,null,"GIRARDOTA",5308]
[null,null,null,null,null,null,null,null,null,null,null,null,null,null,{"$error":"#N/A"},null,null,null,null,null,"GIRON",68307]
[null,null,null,null,null,null,null,null,null,null,null,null,null,null,{"$error":"#N/A"},null,null,null,null,null,"GOMEZ PLATA",5310]
[null,null,null,null,null,null,null,null,null,null,null,null,null,null,{"$error":"#N/A"},null,null,null,null,null,"GONZALEZ",20310]
[null,null,null,null,null,null,null,null,null,null,null,null,null,null,{"$error":"#N/A"},null,null,null,null,null,"GRAMALOTE",54313]
[null,null,null,null,null,null,null,null,null,null,null,null,null,null,{"$error":"#N/A"},null,null,null,null,null,"GRANADA",50313]
[null,null,null,null,null,null,null,null,null,null,null,null,null,null,{"$error":"#N/A"},null,null,null,null,null,"GRANADA - ANTIOQUIA",5313]
[null,null,null,null,null,null,null,null,null,null,null,null,null,null,{"$error":"#N/A"},null,null,null,null,null,"GRANADA - CUNDINAMARCA",25312]
[null,null,null,null,null,null,null,null,null,null,null,null,null,null,{"$error":"#N/A"},null,null,null,null,null,"GUACA",68318]
[null,null,null,null,null,null,null,null,null,null,null,null,null,null,{"$error":"#N/A"},null,null,null,null,null,"GUACAMAYAS",15317]
[null,null,null,null,null,null,null,null,null,null,null,null,null,null,{"$f":"VLOOKUP(K400,$U$16:$V$1123,2,0)","v":{"$error":"#N/A"}},null,null,null,null,null,"GUACARI",76318]
[null,null,null,null,null,null,null,null,null,null,null,null,null,null,{"$error":"#N/A"},null,null,null,null,null,"GUACHETA",25317]
[null,null,null,null,null,null,null,null,null,null,null,null,null,null,{"$error":"#N/A"},null,null,null,null,null,"GUACHUCAL",52317]
[null,null,null,null,null,null,null,null,null,null,null,null,null,null,{"$error":"#N/A"},null,null,null,null,null,"GUADALUPE - ANTIOQUIA",5315]
[null,null,null,null,null,null,null,null,null,null,null,null,null,null,{"$error":"#N/A"},null,null,null,null,null,"GUADALUPE - HUILA",41319]
[null,null,null,null,null,null,null,null,null,null,null,null,null,null,{"$error":"#N/A"},null,null,null,null,null,"GUADALUPE - SANTANDER",68320]
[null,null,null,null,null,null,null,null,null,null,null,null,null,null,{"$error":"#N/A"},null,null,null,null,null,"GUADUAS",25320]
[null,null,null,null,null,null,null,null,null,null,null,null,null,null,{"$error":"#N/A"},null,null,null,null,null,"GUAITARILLA",52320]
[null,null,null,null,null,null,null,null,null,null,null,null,null,null,{"$error":"#N/A"},null,null,null,null,null,"GUALMATAN",52323]
[null,null,null,null,null,null,null,null,null,null,null,null,null,null,{"$error":"#N/A"},null,null,null,null,null,"GUAMAL - MAGDALENA",47318]
[null,null,null,null,null,null,null,null,null,null,null,null,null,null,{"$error":"#N/A"},null,null,null,null,null,"GUAMAL - META",50318]
[null,null,null,null,null,null,null,null,null,null,null,null,null,null,{"$error":"#N/A"},null,null,null,null,null,"GUAMO",73319]
[null,null,null,null,null,null,null,null,null,null,null,null,null,null,{"$error":"#N/A"},null,null,null,null,null,"GUAPI",19318]
[null,null,null,null,null,null,null,null,null,null,null,null,null,null,{"$error":"#N/A"},null,null,null,null,null,"GUAPOTA",68322]
[null,null,null,null,null,null,null,null,null,null,null,null,null,null,{"$error":"#N/A"},null,null,null,null,null,"GUARANDA",70265]
[null,null,null,null,null,null,null,null,null,null,null,null,null,null,{"$error":"#N/A"},null,null,null,null,null,"GUARNE",5318]
[null,null,null,null,null,null,null,null,null,null,null,null,null,null,{"$error":"#N/A"},null,null,null,null,null,"GUASCA",25322]
[null,null,null,null,null,null,null,null,null,null,null,null,null,null,{"$error":"#N/A"},null,null,null,null,null,"GUATAPE",5321]
[null,null,null,null,null,null,null,null,null,null,null,null,null,null,{"$error":"#N/A"},null,null,null,null,null,"GUATAQUI",25324]
[null,null,null,null,null,null,null,null,null,null,null,null,null,null,{"$error":"#N/A"},null,null,null,null,null,"GUATAVITA",25326]
[null,null,null,null,null,null,null,null,null,null,null,null,null,null,{"$error":"#N/A"},null,null,null,null,null,"GUATEQUE",15322]
[null,null,null,null,null,null,null,null,null,null,null,null,null,null,{"$error":"#N/A"},null,null,null,null,null,"GUATICA",66318]
[null,null,null,null,null,null,null,null,null,null,null,null,null,null,{"$error":"#N/A"},null,null,null,null,null,"GUAVATA",68324]
[null,null,null,null,null,null,null,null,null,null,null,null,null,null,{"$error":"#N/A"},null,null,null,null,null,"GUAYABAL DE SIQUIMA",25328]
[null,null,null,null,null,null,null,null,null,null,null,null,null,null,{"$error":"#N/A"},null,null,null,null,null,"GUAYABETAL",25335]
[null,null,null,null,null,null,null,null,null,null,null,null,null,null,{"$error":"#N/A"},null,null,null,null,null,"GUAYATA",15325]
[null,null,null,null,null,null,null,null,null,null,null,null,null,null,{"$error":"#N/A"},null,null,null,null,null,"GUEPSA",68327]
[null,null,null,null,null,null,null,null,null,null,null,null,null,null,{"$error":"#N/A"},null,null,null,null,null,"GUICAN",15332]
[null,null,null,null,null,null,null,null,null,null,null,null,null,null,{"$error":"#N/A"},null,null,null,null,null,"GUTIERREZ",25339]
[null,null,null,null,null,null,null,null,null,null,null,null,null,null,{"$error":"#N/A"},null,null,null,null,null,"HACARI",54344]
[null,null,null,null,null,null,null,null,null,null,null,null,null,null,{"$error":"#N/A"},null,null,null,null,null,"HATILLO DE LOBA",13300]
[null,null,null,null,null,null,null,null,null,null,null,null,null,null,{"$error":"#N/A"},null,null,null,null,null,"HATO",68344]
[null,null,null,null,null,null,null,null,null,null,null,null,null,null,{"$error":"#N/A"},null,null,null,null,null,"HATO COROZAL",85125]
[null,null,null,null,null,null,null,null,null,null,null,null,null,null,{"$error":"#N/A"},null,null,null,null,null,"HATONUEVO",44378]
[null,null,null,null,null,null,null,null,null,null,null,null,null,null,{"$error":"#N/A"},null,null,null,null,null,"HELICONIA",5347]
[null,null,null,null,null,null,null,null,null,null,null,null,null,null,{"$error":"#N/A"},null,null,null,null,null,"HERRAN",54347]
[null,null,null,null,null,null,null,null,null,null,null,null,null,null,{"$error":"#N/A"},null,null,null,null,null,"HERVEO",73347]
[null,null,null,null,null,null,null,null,null,null,null,null,null,null,{"$error":"#N/A"},null,null,null,null,null,"HISPANIA",5353]
[null,null,null,null,null,null,null,null,null,null,null,null,null,null,{"$error":"#N/A"},null,null,null,null,null,"HOBO",41349]
[null,null,null,null,null,null,null,null,null,null,null,null,null,null,{"$error":"#N/A"},null,null,null,null,null,"HONDA",73349]
[null,null,null,null,null,null,null,null,null,null,null,null,null,null,{"$error":"#N/A"},null,null,null,null,null,"IBAGUE",73001]
[null,null,null,null,null,null,null,null,null,null,null,null,null,null,{"$error":"#N/A"},null,null,null,null,null,"ICONONZO",73352]
[null,null,null,null,null,null,null,null,null,null,null,null,null,null,{"$error":"#N/A"},null,null,null,null,null,"ILES",52352]
[null,null,null,null,null,null,null,null,null,null,null,null,null,null,{"$error":"#N/A"},null,null,null,null,null,"IMUES",52354]
[null,null,null,null,null,null,null,null,null,null,null,null,null,null,{"$error":"#N/A"},null,null,null,null,null,"INZA",19355]
[null,null,null,null,null,null,null,null,null,null,null,null,null,null,{"$error":"#N/A"},null,null,null,null,null,"IPIALES",52356]
[null,null,null,null,null,null,null,null,null,null,null,null,null,null,{"$error":"#N/A"},null,null,null,null,null,"IQUIRA",41357]
[null,null,null,null,null,null,null,null,null,null,null,null,null,null,{"$error":"#N/A"},null,null,null,null,null,"ISNOS",41359]
[null,null,null,null,null,null,null,null,null,null,null,null,null,null,{"$error":"#N/A"},null,null,null,null,null,"ISTMINA",27361]
[null,null,null,null,null,null,null,null,null,null,null,null,null,null,{"$error":"#N/A"},null,null,null,null,null,"ITAGUI",5360]
[null,null,null,null,null,null,null,null,null,null,null,null,null,null,{"$error":"#N/A"},null,null,null,null,null,"ITUANGO",5361]
[null,null,null,null,null,null,null,null,null,null,null,null,null,null,{"$error":"#N/A"},null,null,null,null,null,"IZA",15362]
[null,null,null,null,null,null,null,null,null,null,null,null,null,null,{"$error":"#N/A"},null,null,null,null,null,"JAMBALO",19364]
[null,null,null,null,null,null,null,null,null,null,null,null,null,null,{"$error":"#N/A"},null,null,null,null,null,"JAMUNDI",76364]
[null,null,null,null,null,null,null,null,null,null,null,null,null,null,{"$error":"#N/A"},null,null,null,null,null,"JARDIN",5364]
[null,null,null,null,null,null,null,null,null,null,null,null,null,null,{"$error":"#N/A"},null,null,null,null,null,"JENESANO",15367]
[null,null,null,null,null,null,null,null,null,null,null,null,null,null,{"$error":"#N/A"},null,null,null,null,null,"JERICO - ANTIOQUIA",5368]
[null,null,null,null,null,null,null,null,null,null,null,null,null,null,{"$error":"#N/A"},null,null,null,null,null,"JERICO - BOYACA",15368]
[null,null,null,null,null,null,null,null,null,null,null,null,null,null,{"$error":"#N/A"},null,null,null,null,null,"JERUSALEN",25368]
[null,null,null,null,null,null,null,null,null,null,null,null,null,null,{"$error":"#N/A"},null,null,null,null,null,"JESUS MARIA",68368]
[null,null,null,null,null,null,null,null,null,null,null,null,null,null,{"$error":"#N/A"},null,null,null,null,null,"JORDAN",68370]
[null,null,null,null,null,null,null,null,null,null,null,null,null,null,{"$error":"#N/A"},null,null,null,null,null,"JUAN DE ACOSTA",8372]
[null,null,null,null,null,null,null,null,null,null,null,null,null,null,{"$error":"#N/A"},null,null,null,null,null,"JUNIN",25372]
[null,null,null,null,null,null,null,null,null,null,null,null,null,null,{"$error":"#N/A"},null,null,null,null,null,"JURADO",27372]
[null,null,null,null,null,null,null,null,null,null,null,null,null,null,{"$f":"VLOOKUP(K464,$U$16:$V$1123,2,0)","v":{"$error":"#N/A"}},null,null,null,null,null,"LA APARTADA",23350]
[null,null,null,null,null,null,null,null,null,null,null,null,null,null,{"$error":"#N/A"},null,null,null,null,null,"LA ARGENTINA",41378]
[null,null,null,null,null,null,null,null,null,null,null,null,null,null,{"$error":"#N/A"},null,null,null,null,null,"LA BELLEZA",68377]
[null,null,null,null,null,null,null,null,null,null,null,null,null,null,{"$error":"#N/A"},null,null,null,null,null,"LA CALERA",25377]
[null,null,null,null,null,null,null,null,null,null,null,null,null,null,{"$error":"#N/A"},null,null,null,null,null,"LA CAPILLA",15380]
[null,null,null,null,null,null,null,null,null,null,null,null,null,null,{"$error":"#N/A"},null,null,null,null,null,"LA CEJA",5376]
[null,null,null,null,null,null,null,null,null,null,null,null,null,null,{"$error":"#N/A"},null,null,null,null,null,"LA CELIA",66383]
[null,null,null,null,null,null,null,null,null,null,null,null,null,null,{"$error":"#N/A"},null,null,null,null,null,"LA CHORRERA",91405]
[null,null,null,null,null,null,null,null,null,null,null,null,null,null,{"$error":"#N/A"},null,null,null,null,null,"LA CRUZ",52378]
[null,null,null,null,null,null,null,null,null,null,null,null,null,null,{"$error":"#N/A"},null,null,null,null,null,"LA CUMBRE",76377]
[null,null,null,null,null,null,null,null,null,null,null,null,null,null,{"$error":"#N/A"},null,null,null,null,null,"LA DORADA",17380]
[null,null,null,null,null,null,null,null,null,null,null,null,null,null,{"$error":"#N/A"},null,null,null,null,null,"LA ESPERANZA",54385]
[null,null,null,null,null,null,null,null,null,null,null,null,null,null,{"$error":"#N/A"},null,null,null,null,null,"LA ESTRELLA",5380]
[null,null,null,null,null,null,null,null,null,null,null,null,null,null,{"$error":"#N/A"},null,null,null,null,null,"LA FLORIDA",52381]
[null,null,null,null,null,null,null,null,null,null,null,null,null,null,{"$error":"#N/A"},null,null,null,null,null,"LA GLORIA",20383]
[null,null,null,null,null,null,null,null,null,null,null,null,null,null,{"$error":"#N/A"},null,null,null,null,null,"LA GUADALUPE",94885]
[null,null,null,null,null,null,null,null,null,null,null,null,null,null,{"$error":"#N/A"},null,null,null,null,null,"LA JAGUA DEL PILAR",44420]
[null,null,null,null,null,null,null,null,null,null,null,null,null,null,{"$error":"#N/A"},null,null,null,null,null,"LA JAGUA IBIRICO",20400]
[null,null,null,null,null,null,null,null,null,null,null,null,null,null,{"$error":"#N/A"},null,null,null,null,null,"LA LLANADA",52385]
[null,null,null,null,null,null,null,null,null,null,null,null,null,null,{"$error":"#N/A"},null,null,null,null,null,"LA MACARENA",50350]
[null,null,null,null,null,null,null,null,null,null,null,null,null,null,{"$error":"#N/A"},null,null,null,null,null,"LA MERCED",17388]
[null,null,null,null,null,null,null,null,null,null,null,null,null,null,{"$error":"#N/A"},null,null,null,null,null,"LA MESA",25386]
[null,null,null,null,null,null,null,null,null,null,null,null,null,null,{"$error":"#N/A"},null,null,null,null,null,"LA MONTANITA",18410]
[null,null,null,null,null,null,null,null,null,null,null,null,null,null,{"$error":"#N/A"},null,null,null,null,null,"LA PALMA",25394]
[null,null,null,null,null,null,null,null,null,null,null,null,null,null,{"$error":"#N/A"},null,null,null,null,null,"LA PAZ",68397]
[null,null,null,null,null,null,null,null,null,null,null,null,null,null,{"$error":"#N/A"},null,null,null,null,null,"LA PEDRERA",91407]
[null,null,null,null,null,null,null,null,null,null,null,null,null,null,{"$error":"#N/A"},null,null,null,null,null,"LA PENA",25398]
[null,null,null,null,null,null,null,null,null,null,null,null,null,null,{"$error":"#N/A"},null,null,null,null,null,"LA PINTADA",5390]
[null,null,null,null,null,null,null,null,null,null,null,null,null,null,{"$error":"#N/A"},null,null,null,null,null,"LA PLATA",41396]
[null,null,null,null,null,null,null,null,null,null,null,null,null,null,{"$error":"#N/A"},null,null,null,null,null,"LA PLAYA",54398]
[null,null,null,null,null,null,null,null,null,null,null,null,null,null,{"$error":"#N/A"},null,null,null,null,null,"LA PRIMAVERA",99524]
[null,null,null,null,null,null,null,null,null,null,null,null,null,null,{"$error":"#N/A"},null,null,null,null,null,"LA SALINA",85136]
[null,null,null,null,null,null,null,null,null,null,null,null,null,null,{"$error":"#N/A"},null,null,null,null,null,"LA SIERRA",19392]
[null,null,null,null,null,null,null,null,null,null,null,null,null,null,{"$error":"#N/A"},null,null,null,null,null,"LA TEBAIDA",63401]
[null,null,null,null,null,null,null,null,null,null,null,null,null,null,{"$error":"#N/A"},null,null,null,null,null,"LA TOLA",52390]
[null,null,null,null,null,null,null,null,null,null,null,null,null,null,{"$error":"#N/A"},null,null,null,null,null,"LA UNION - ANTIOQUIA",5400]
[null,null,null,null,null,null,null,null,null,null,null,null,null,null,{"$error":"#N/A"},null,null,null,null,null,"LA UNION - NARINO",52399]
[null,null,null,null,null,null,null,null,null,null,null,null,null,null,{"$error":"#N/A"},null,null,null,null,null,"LA UNION - SUCRE",70400]
[null,null,null,null,null,null,null,null,null,null,null,null,null,null,{"$error":"#N/A"},null,null,null,null,null,"LA UNION - VALLE",76400]
[null,null,null,null,null,null,null,null,null,null,null,null,null,null,{"$error":"#N/A"},null,null,null,null,null,"LA URIBE",50370]
[null,null,null,null,null,null,null,null,null,null,null,null,null,null,{"$error":"#N/A"},null,null,null,null,null,"LA UVITA",15403]
[null,null,null,null,null,null,null,null,null,null,null,null,null,null,{"$error":"#N/A"},null,null,null,null,null,"LA VEGA - CUNDINAMARCA",25402]
[null,null,null,null,null,null,null,null,null,null,null,null,null,null,{"$error":"#N/A"},null,null,null,null,null,"LA VEGA - CAUCA",19397]
[null,null,null,null,null,null,null,null,null,null,null,null,null,null,{"$error":"#N/A"},null,null,null,null,null,"LA VICTORIA - BOYACA",15401]
[null,null,null,null,null,null,null,null,null,null,null,null,null,null,{"$error":"#N/A"},null,null,null,null,null,"LA VICTORIA - VALLE",76403]
[null,null,null,null,null,null,null,null,null,null,null,null,null,null,{"$error":"#N/A"},null,null,null,null,null,"LA VICTORIA (CD)",91430]
[null,null,null,null,null,null,null,null,null,null,null,null,null,null,{"$error":"#N/A"},null,null,null,null,null,"LA VIRGINIA",66400]
[null,null,null,null,null,null,null,null,null,null,null,null,null,null,{"$error":"#N/A"},null,null,null,null,null,"LABATECA",54377]
[null,null,null,null,null,null,null,null,null,null,null,null,null,null,{"$error":"#N/A"},null,null,null,null,null,"LABRANZAGRANDE",15377]
[null,null,null,null,null,null,null,null,null,null,null,null,null,null,{"$error":"#N/A"},null,null,null,null,null,"LANDAZURI",68385]
[null,null,null,null,null,null,null,null,null,null,null,null,null,null,{"$error":"#N/A"},null,null,null,null,null,"LEBRIJA",68406]
[null,null,null,null,null,null,null,null,null,null,null,null,null,null,{"$error":"#N/A"},null,null,null,null,null,"LEIVA - BOYACA",15407]
[null,null,null,null,null,null,null,null,null,null,null,null,null,null,{"$error":"#N/A"},null,null,null,null,null,"LEIVA - NARINO",52405]
[null,null,null,null,null,null,null,null,null,null,null,null,null,null,{"$error":"#N/A"},null,null,null,null,null,"LEJANIAS",50400]
[null,null,null,null,null,null,null,null,null,null,null,null,null,null,{"$error":"#N/A"},null,null,null,null,null,"LENGUAZAQUE",25407]
[null,null,null,null,null,null,null,null,null,null,null,null,null,null,{"$error":"#N/A"},null,null,null,null,null,"LERIDA",73408]
[null,null,null,null,null,null,null,null,null,null,null,null,null,null,{"$error":"#N/A"},null,null,null,null,null,"LETICIA",91001]
[null,null,null,null,null,null,null,null,null,null,null,null,null,null,{"$error":"#N/A"},null,null,null,null,null,"LIBANO",73411]
[null,null,null,null,null,null,null,null,null,null,null,null,null,null,{"$error":"#N/A"},null,null,null,null,null,"LIBORINA",5411]
[null,null,null,null,null,null,null,null,null,null,null,null,null,null,{"$error":"#N/A"},null,null,null,null,null,"LINARES",52411]
[null,null,null,null,null,null,null,null,null,null,null,null,null,null,{"$error":"#N/A"},null,null,null,null,null,"LITORAL DEL SAN JUAN",27082]
[null,null,null,null,null,null,null,null,null,null,null,null,null,null,{"$error":"#N/A"},null,null,null,null,null,"LLORO",27413]
[null,null,null,null,null,null,null,null,null,null,null,null,null,null,{"$error":"#N/A"},null,null,null,null,null,"LOPEZ",19418]
[null,null,null,null,null,null,null,null,null,null,null,null,null,null,{"$error":"#N/A"},null,null,null,null,null,"LORICA",23417]
[null,null,null,null,null,null,null,null,null,null,null,null,null,null,{"$f":"VLOOKUP(K528,$U$16:$V$1123,2,0)","v":{"$error":"#N/A"}},null,null,null,null,null,"LOS ANDES",52418]
[null,null,null,null,null,null,null,null,null,null,null,null,null,null,{"$error":"#N/A"},null,null,null,null,null,"LOS CORDOBAS",23419]
[null,null,null,null,null,null,null,null,null,null,null,null,null,null,{"$error":"#N/A"},null,null,null,null,null,"LOS PALMITOS",70418]
[null,null,null,null,null,null,null,null,null,null,null,null,null,null,{"$error":"#N/A"},null,null,null,null,null,"LOS PATIOS",54405]
[null,null,null,null,null,null,null,null,null,null,null,null,null,null,{"$error":"#N/A"},null,null,null,null,null,"LOS SANTOS",68418]
[null,null,null,null,null,null,null,null,null,null,null,null,null,null,{"$error":"#N/A"},null,null,null,null,null,"LOURDES",54418]
[null,null,null,null,null,null,null,null,null,null,null,null,null,null,{"$error":"#N/A"},null,null,null,null,null,"LURUACO",8421]
[null,null,null,null,null,null,null,null,null,null,null,null,null,null,{"$error":"#N/A"},null,null,null,null,null,"MACANAL",15425]
[null,null,null,null,null,null,null,null,null,null,null,null,null,null,{"$error":"#N/A"},null,null,null,null,null,"MACARAVITA",68425]
[null,null,null,null,null,null,null,null,null,null,null,null,null,null,{"$error":"#N/A"},null,null,null,null,null,"MACEO",5425]
[null,null,null,null,null,null,null,null,null,null,null,null,null,null,{"$error":"#N/A"},null,null,null,null,null,"MACHETA",25426]
[null,null,null,null,null,null,null,null,null,null,null,null,null,null,{"$error":"#N/A"},null,null,null,null,null,"MADRID",25430]
[null,null,null,null,null,null,null,null,null,null,null,null,null,null,{"$error":"#N/A"},null,null,null,null,null,"MAGANGUE",13430]
[null,null,null,null,null,null,null,null,null,null,null,null,null,null,{"$error":"#N/A"},null,null,null,null,null,"MAGUI",52427]
[null,null,null,null,null,null,null,null,null,null,null,null,null,null,{"$error":"#N/A"},null,null,null,null,null,"MAHATES",13433]
[null,null,null,null,null,null,null,null,null,null,null,null,null,null,{"$error":"#N/A"},null,null,null,null,null,"MAICAO",44430]
[null,null,null,null,null,null,null,null,null,null,null,null,null,null,{"$error":"#N/A"},null,null,null,null,null,"MAJAGUAL",70429]
[null,null,null,null,null,null,null,null,null,null,null,null,null,null,{"$error":"#N/A"},null,null,null,null,null,"MALAGA",68432]
[null,null,null,null,null,null,null,null,null,null,null,null,null,null,{"$error":"#N/A"},null,null,null,null,null,"MALAMBO",8433]
[null,null,null,null,null,null,null,null,null,null,null,null,null,null,{"$error":"#N/A"},null,null,null,null,null,"MALLAMA",52435]
[null,null,null,null,null,null,null,null,null,null,null,null,null,null,{"$error":"#N/A"},null,null,null,null,null,"MANATI",8436]
[null,null,null,null,null,null,null,null,null,null,null,null,null,null,{"$error":"#N/A"},null,null,null,null,null,"MANAURE - CESAR",20443]
[null,null,null,null,null,null,null,null,null,null,null,null,null,null,{"$error":"#N/A"},null,null,null,null,null,"MANAURE - GUAJIRA",44560]
[null,null,null,null,null,null,null,null,null,null,null,null,null,null,{"$error":"#N/A"},null,null,null,null,null,"MANI",85139]
[null,null,null,null,null,null,null,null,null,null,null,null,null,null,{"$error":"#N/A"},null,null,null,null,null,"MANIZALES",17001]
[null,null,null,null,null,null,null,null,null,null,null,null,null,null,{"$error":"#N/A"},null,null,null,null,null,"MANTA",25436]
[null,null,null,null,null,null,null,null,null,null,null,null,null,null,{"$error":"#N/A"},null,null,null,null,null,"MANZANARES",17433]
[null,null,null,null,null,null,null,null,null,null,null,null,null,null,{"$error":"#N/A"},null,null,null,null,null,"MAPIRIPAN",50325]
[null,null,null,null,null,null,null,null,null,null,null,null,null,null,{"$error":"#N/A"},null,null,null,null,null,"MARGARITA",13440]
[null,null,null,null,null,null,null,null,null,null,null,null,null,null,{"$error":"#N/A"},null,null,null,null,null,"MARIA LA BAJA",13442]
[null,null,null,null,null,null,null,null,null,null,null,null,null,null,{"$error":"#N/A"},null,null,null,null,null,"MARINILLA",5440]
[null,null,null,null,null,null,null,null,null,null,null,null,null,null,{"$error":"#N/A"},null,null,null,null,null,"MARIPI",15442]
[null,null,null,null,null,null,null,null,null,null,null,null,null,null,{"$error":"#N/A"},null,null,null,null,null,"MARIQUITA",73443]
[null,null,null,null,null,null,null,null,null,null,null,null,null,null,{"$error":"#N/A"},null,null,null,null,null,"MARMATO",17442]
[null,null,null,null,null,null,null,null,null,null,null,null,null,null,{"$error":"#N/A"},null,null,null,null,null,"MARQUETALIA",17444]
[null,null,null,null,null,null,null,null,null,null,null,null,null,null,{"$error":"#N/A"},null,null,null,null,null,"MARSELLA",66440]
[null,null,null,null,null,null,null,null,null,null,null,null,null,null,{"$error":"#N/A"},null,null,null,null,null,"MARULANDA",17446]
[null,null,null,null,null,null,null,null,null,null,null,null,null,null,{"$error":"#N/A"},null,null,null,null,null,"MATANZA",68444]
[null,null,null,null,null,null,null,null,null,null,null,null,null,null,{"$error":"#N/A"},null,null,null,null,null,"MEDELLIN",5001]
[null,null,null,null,null,null,null,null,null,null,null,null,null,null,{"$error":"#N/A"},null,null,null,null,null,"MEDINA",25438]
[null,null,null,null,null,null,null,null,null,null,null,null,null,null,{"$error":"#N/A"},null,null,null,null,null,"MEDIO ATRATO",27425]
[null,null,null,null,null,null,null,null,null,null,null,null,null,null,{"$error":"#N/A"},null,null,null,null,null,"MEDIO BAUDO",27430]
[null,null,null,null,null,null,null,null,null,null,null,null,null,null,{"$error":"#N/A"},null,null,null,null,null,"MELGAR",73449]
[null,null,null,null,null,null,null,null,null,null,null,null,null,null,{"$error":"#N/A"},null,null,null,null,null,"MERCADERES",19450]
[null,null,null,null,null,null,null,null,null,null,null,null,null,null,{"$error":"#N/A"},null,null,null,null,null,"MESETAS",50330]
[null,null,null,null,null,null,null,null,null,null,null,null,null,null,{"$error":"#N/A"},null,null,null,null,null,"MILAN",18460]
[null,null,null,null,null,null,null,null,null,null,null,null,null,null,{"$error":"#N/A"},null,null,null,null,null,"MIRAFLORES - BOYACA",15455]
[null,null,null,null,null,null,null,null,null,null,null,null,null,null,{"$error":"#N/A"},null,null,null,null,null,"MIRAFLORES - GUAVIARE",95200]
[null,null,null,null,null,null,null,null,null,null,null,null,null,null,{"$error":"#N/A"},null,null,null,null,null,"MIRANDA",19455]
[null,null,null,null,null,null,null,null,null,null,null,null,null,null,{"$error":"#N/A"},null,null,null,null,null,"MIRITI-PARANA",91460]
[null,null,null,null,null,null,null,null,null,null,null,null,null,null,{"$error":"#N/A"},null,null,null,null,null,"MISTRATO",66456]
[null,null,null,null,null,null,null,null,null,null,null,null,null,null,{"$error":"#N/A"},null,null,null,null,null,"MITU",97001]
[null,null,null,null,null,null,null,null,null,null,null,null,null,null,{"$error":"#N/A"},null,null,null,null,null,"MOCOA",86001]
[null,null,null,null,null,null,null,null,null,null,null,null,null,null,{"$error":"#N/A"},null,null,null,null,null,"MOGOTES",68464]
[null,null,null,null,null,null,null,null,null,null,null,null,null,null,{"$error":"#N/A"},null,null,null,null,null,"MOLAGAVITA",68468]
[null,null,null,null,null,null,null,null,null,null,null,null,null,null,{"$error":"#N/A"},null,null,null,null,null,"MOMIL",23464]
[null,null,null,null,null,null,null,null,null,null,null,null,null,null,{"$error":"#N/A"},null,null,null,null,null,"MOMPOS",13468]
[null,null,null,null,null,null,null,null,null,null,null,null,null,null,{"$error":"#N/A"},null,null,null,null,null,"MONGUA",15464]
[null,null,null,null,null,null,null,null,null,null,null,null,null,null,{"$error":"#N/A"},null,null,null,null,null,"MONGUI",15466]
[null,null,null,null,null,null,null,null,null,null,null,null,null,null,{"$error":"#N/A"},null,null,null,null,null,"MONIQUIRA",15469]
[null,null,null,null,null,null,null,null,null,null,null,null,null,null,{"$error":"#N/A"},null,null,null,null,null,"MONTEBELLO",5467]
[null,null,null,null,null,null,null,null,null,null,null,null,null,null,{"$error":"#N/A"},null,null,null,null,null,"MONTECRISTO",13458]
[null,null,null,null,null,null,null,null,null,null,null,null,null,null,{"$error":"#N/A"},null,null,null,null,null,"MONTELIBANO",23466]
[null,null,null,null,null,null,null,null,null,null,null,null,null,null,{"$error":"#N/A"},null,null,null,null,null,"MONTENEGRO",63470]
[null,null,null,null,null,null,null,null,null,null,null,null,null,null,{"$f":"VLOOKUP(K592,$U$16:$V$1123,2,0)","v":{"$error":"#N/A"}},null,null,null,null,null,"MONTERIA",23001]
[null,null,null,null,null,null,null,null,null,null,null,null,null,null,{"$error":"#N/A"},null,null,null,null,null,"MONTERREY",85162]
[null,null,null,null,null,null,null,null,null,null,null,null,null,null,{"$error":"#N/A"},null,null,null,null,null,"MONITOS",23500]
[null,null,null,null,null,null,null,null,null,null,null,null,null,null,{"$error":"#N/A"},null,null,null,null,null,"MORALES - BOLIVAR",13473]
[null,null,null,null,null,null,null,null,null,null,null,null,null,null,{"$error":"#N/A"},null,null,null,null,null,"MORALES - CAUCA",19473]
[null,null,null,null,null,null,null,null,null,null,null,null,null,null,{"$error":"#N/A"},null,null,null,null,null,"MORELIA",18479]
[null,null,null,null,null,null,null,null,null,null,null,null,null,null,{"$error":"#N/A"},null,null,null,null,null,"MORICHAL",95220]
[null,null,null,null,null,null,null,null,null,null,null,null,null,null,{"$error":"#N/A"},null,null,null,null,null,"MORICHAL NUEVO",94888]
[null,null,null,null,null,null,null,null,null,null,null,null,null,null,{"$error":"#N/A"},null,null,null,null,null,"MORROA",70473]
[null,null,null,null,null,null,null,null,null,null,null,null,null,null,{"$error":"#N/A"},null,null,null,null,null,"MOSQUERA - CUNDINAMARCA",25473]
[null,null,null,null,null,null,null,null,null,null,null,null,null,null,{"$error":"#N/A"},null,null,null,null,null,"MOSQUERA - NARINO",52473]
[null,null,null,null,null,null,null,null,null,null,null,null,null,null,{"$error":"#N/A"},null,null,null,null,null,"MOTAVITA",15476]
[null,null,null,null,null,null,null,null,null,null,null,null,null,null,{"$error":"#N/A"},null,null,null,null,null,"MURILLO",73461]
[null,null,null,null,null,null,null,null,null,null,null,null,null,null,{"$error":"#N/A"},null,null,null,null,null,"MURINDO",5475]
[null,null,null,null,null,null,null,null,null,null,null,null,null,null,{"$error":"#N/A"},null,null,null,null,null,"MUTATA",5480]
[null,null,null,null,null,null,null,null,null,null,null,null,null,null,{"$error":"#N/A"},null,null,null,null,null,"MUTISCUA",54480]
[null,null,null,null,null,null,null,null,null,null,null,null,null,null,{"$error":"#N/A"},null,null,null,null,null,"MUZO",15480]
[null,null,null,null,null,null,null,null,null,null,null,null,null,null,{"$error":"#N/A"},null,null,null,null,null,"NARINO - ANTIOQUIA",5483]
[null,null,null,null,null,null,null,null,null,null,null,null,null,null,{"$error":"#N/A"},null,null,null,null,null,"NARINO - CUNDINAMARCA",25483]
[null,null,null,null,null,null,null,null,null,null,null,null,null,null,{"$error":"#N/A"},null,null,null,null,null,"NATAGA",41483]
[null,null,null,null,null,null,null,null,null,null,null,null,null,null,{"$error":"#N/A"},null,null,null,null,null,"NATAGAIMA",73483]
[null,null,null,null,null,null,null,null,null,null,null,null,null,null,{"$error":"#N/A"},null,null,null,null,null,"NECHI",5495]
[null,null,null,null,null,null,null,null,null,null,null,null,null,null,{"$error":"#N/A"},null,null,null,null,null,"NECOCLI",5490]
[null,null,null,null,null,null,null,null,null,null,null,null,null,null,{"$error":"#N/A"},null,null,null,null,null,"NEIRA",17486]
[null,null,null,null,null,null,null,null,null,null,null,null,null,null,{"$error":"#N/A"},null,null,null,null,null,"NEIVA",41001]
[null,null,null,null,null,null,null,null,null,null,null,null,null,null,{"$error":"#N/A"},null,null,null,null,null,"NEMOCON",25486]
[null,null,null,null,null,null,null,null,null,null,null,null,null,null,{"$error":"#N/A"},null,null,null,null,null,"NILO",25488]
[null,null,null,null,null,null,null,null,null,null,null,null,null,null,{"$error":"#N/A"},null,null,null,null,null,"NIMAIMA",25489]
[null,null,null,null,null,null,null,null,null,null,null,null,null,null,{"$error":"#N/A"},null,null,null,null,null,"NOBSA",15491]
[null,null,null,null,null,null,null,null,null,null,null,null,null,null,{"$error":"#N/A"},null,null,null,null,null,"NOCAIMA",25491]
[null,null,null,null,null,null,null,null,null,null,null,null,null,null,{"$error":"#N/A"},null,null,null,null,null,"NORCASIA",17495]
[null,null,null,null,null,null,null,null,null,null,null,null,null,null,{"$error":"#N/A"},null,null,null,null,null,"NOVITA",27491]
[null,null,null,null,null,null,null,null,null,null,null,null,null,null,{"$error":"#N/A"},null,null,null,null,null,"NUEVO COLON",15494]
[null,null,null,null,null,null,null,null,null,null,null,null,null,null,{"$error":"#N/A"},null,null,null,null,null,"NUNCHIA",85225]
[null,null,null,null,null,null,null,null,null,null,null,null,null,null,{"$error":"#N/A"},null,null,null,null,null,"NUQUI",27495]
[null,null,null,null,null,null,null,null,null,null,null,null,null,null,{"$error":"#N/A"},null,null,null,null,null,"OBANDO",76497]
[null,null,null,null,null,null,null,null,null,null,null,null,null,null,{"$error":"#N/A"},null,null,null,null,null,"OCAMONTE",68498]
[null,null,null,null,null,null,null,null,null,null,null,null,null,null,{"$error":"#N/A"},null,null,null,null,null,"OCANA",54498]
[null,null,null,null,null,null,null,null,null,null,null,null,null,null,{"$error":"#N/A"},null,null,null,null,null,"OIBA",68500]
[null,null,null,null,null,null,null,null,null,null,null,null,null,null,{"$error":"#N/A"},null,null,null,null,null,"OICATA",15500]
[null,null,null,null,null,null,null,null,null,null,null,null,null,null,{"$error":"#N/A"},null,null,null,null,null,"OLAYA",5501]
[null,null,null,null,null,null,null,null,null,null,null,null,null,null,{"$error":"#N/A"},null,null,null,null,null,"OLAYA HERRERA",52490]
[null,null,null,null,null,null,null,null,null,null,null,null,null,null,{"$error":"#N/A"},null,null,null,null,null,"ONZAGA",68502]
[null,null,null,null,null,null,null,null,null,null,null,null,null,null,{"$error":"#N/A"},null,null,null,null,null,"OPORAPA",41503]
[null,null,null,null,null,null,null,null,null,null,null,null,null,null,{"$error":"#N/A"},null,null,null,null,null,"ORITO",86320]
[null,null,null,null,null,null,null,null,null,null,null,null,null,null,{"$error":"#N/A"},null,null,null,null,null,"OROCUE",85230]
[null,null,null,null,null,null,null,null,null,null,null,null,null,null,{"$error":"#N/A"},null,null,null,null,null,"ORTEGA",73504]
[null,null,null,null,null,null,null,null,null,null,null,null,null,null,{"$error":"#N/A"},null,null,null,null,null,"OSPINA",52506]
[null,null,null,null,null,null,null,null,null,null,null,null,null,null,{"$error":"#N/A"},null,null,null,null,null,"OSPINA PEREZ",25506]
[null,null,null,null,null,null,null,null,null,null,null,null,null,null,{"$error":"#N/A"},null,null,null,null,null,"OTANCHE",15507]
[null,null,null,null,null,null,null,null,null,null,null,null,null,null,{"$error":"#N/A"},null,null,null,null,null,"OVEJAS",70508]
[null,null,null,null,null,null,null,null,null,null,null,null,null,null,{"$error":"#N/A"},null,null,null,null,null,"PACHAVITA",15511]
[null,null,null,null,null,null,null,null,null,null,null,null,null,null,{"$error":"#N/A"},null,null,null,null,null,"PACHO",25513]
[null,null,null,null,null,null,null,null,null,null,null,null,null,null,{"$error":"#N/A"},null,null,null,null,null,"PACOA",97511]
[null,null,null,null,null,null,null,null,null,null,null,null,null,null,{"$error":"#N/A"},null,null,null,null,null,"PACORA",17513]
[null,null,null,null,null,null,null,null,null,null,null,null,null,null,{"$error":"#N/A"},null,null,null,null,null,"PADILLA",19513]
[null,null,null,null,null,null,null,null,null,null,null,null,null,null,{"$error":"#N/A"},null,null,null,null,null,"PAEZ - BOYACA",15514]
[null,null,null,null,null,null,null,null,null,null,null,null,null,null,{"$error":"#N/A"},null,null,null,null,null,"PAEZ - CAUCA",19517]
[null,null,null,null,null,null,null,null,null,null,null,null,null,null,{"$error":"#N/A"},null,null,null,null,null,"PAICOL",41518]
[null,null,null,null,null,null,null,null,null,null,null,null,null,null,{"$error":"#N/A"},null,null,null,null,null,"PAILITAS",20517]
[null,null,null,null,null,null,null,null,null,null,null,null,null,null,{"$error":"#N/A"},null,null,null,null,null,"PAIME",25518]
[null,null,null,null,null,null,null,null,null,null,null,null,null,null,{"$error":"#N/A"},null,null,null,null,null,"PAIPA",15516]
[null,null,null,null,null,null,null,null,null,null,null,null,null,null,{"$error":"#N/A"},null,null,null,null,null,"PAJARITO",15518]
[null,null,null,null,null,null,null,null,null,null,null,null,null,null,{"$error":"#N/A"},null,null,null,null,null,"PALERMO",41524]
[null,null,null,null,null,null,null,null,null,null,null,null,null,null,{"$f":"VLOOKUP(K656,$U$16:$V$1123,2,0)","v":{"$error":"#N/A"}},null,null,null,null,null,"PALESTINA - CALDAS",17524]
[null,null,null,null,null,null,null,null,null,null,null,null,null,null,{"$error":"#N/A"},null,null,null,null,null,"PALESTINA - HUILA",41530]
[null,null,null,null,null,null,null,null,null,null,null,null,null,null,{"$error":"#N/A"},null,null,null,null,null,"PALMAR",68522]
[null,null,null,null,null,null,null,null,null,null,null,null,null,null,{"$error":"#N/A"},null,null,null,null,null,"PALMAR DE VARELA",8520]
[null,null,null,null,null,null,null,null,null,null,null,null,null,null,{"$error":"#N/A"},null,null,null,null,null,"PALMAS DEL SOCORRO",68524]
[null,null,null,null,null,null,null,null,null,null,null,null,null,null,{"$error":"#N/A"},null,null,null,null,null,"PALMIRA",76520]
[null,null,null,null,null,null,null,null,null,null,null,null,null,null,{"$error":"#N/A"},null,null,null,null,null,"PALMITO",70523]
[null,null,null,null,null,null,null,null,null,null,null,null,null,null,{"$error":"#N/A"},null,null,null,null,null,"PALOCABILDO",73520]
[null,null,null,null,null,null,null,null,null,null,null,null,null,null,{"$error":"#N/A"},null,null,null,null,null,"PAMPLONA",54518]
[null,null,null,null,null,null,null,null,null,null,null,null,null,null,{"$error":"#N/A"},null,null,null,null,null,"PAMPLONITA",54520]
[null,null,null,null,null,null,null,null,null,null,null,null,null,null,{"$error":"#N/A"},null,null,null,null,null,"PANA PANA",94887]
[null,null,null,null,null,null,null,null,null,null,null,null,null,null,{"$error":"#N/A"},null,null,null,null,null,"PANDI",25524]
[null,null,null,null,null,null,null,null,null,null,null,null,null,null,{"$error":"#N/A"},null,null,null,null,null,"PANQUEBA",15522]
[null,null,null,null,null,null,null,null,null,null,null,null,null,null,{"$error":"#N/A"},null,null,null,null,null,"PAPUNAUA",97777]
[null,null,null,null,null,null,null,null,null,null,null,null,null,null,{"$error":"#N/A"},null,null,null,null,null,"PARAMO",68533]
[null,null,null,null,null,null,null,null,null,null,null,null,null,null,{"$error":"#N/A"},null,null,null,null,null,"PARATEBUENO",25530]
[null,null,null,null,null,null,null,null,null,null,null,null,null,null,{"$error":"#N/A"},null,null,null,null,null,"PASCA",25535]
[null,null,null,null,null,null,null,null,null,null,null,null,null,null,{"$error":"#N/A"},null,null,null,null,null,"PASTO",52001]
[null,null,null,null,null,null,null,null,null,null,null,null,null,null,{"$error":"#N/A"},null,null,null,null,null,"PATIA(EL BORDO)",19532]
[null,null,null,null,null,null,null,null,null,null,null,null,null,null,{"$error":"#N/A"},null,null,null,null,null,"PAUNA",15531]
[null,null,null,null,null,null,null,null,null,null,null,null,null,null,{"$error":"#N/A"},null,null,null,null,null,"PAYA",15533]
[null,null,null,null,null,null,null,null,null,null,null,null,null,null,{"$error":"#N/A"},null,null,null,null,null,"PAZ DE ARIPORO",85250]
[null,null,null,null,null,null,null,null,null,null,null,null,null,null,{"$error":"#N/A"},null,null,null,null,null,"PAZ DEL RIO",15537]
[null,null,null,null,null,null,null,null,null,null,null,null,null,null,{"$error":"#N/A"},null,null,null,null,null,"PEDRAZA",47541]
[null,null,null,null,null,null,null,null,null,null,null,null,null,null,{"$error":"#N/A"},null,null,null,null,null,"PELAYA",20550]
[null,null,null,null,null,null,null,null,null,null,null,null,null,null,{"$error":"#N/A"},null,null,null,null,null,"PENSILVANIA",17541]
[null,null,null,null,null,null,null,null,null,null,null,null,null,null,{"$error":"#N/A"},null,null,null,null,null,"PENOL",5541]
[null,null,null,null,null,null,null,null,null,null,null,null,null,null,{"$error":"#N/A"},null,null,null,null,null,"PEQUE",5543]
[null,null,null,null,null,null,null,null,null,null,null,null,null,null,{"$error":"#N/A"},null,null,null,null,null,"PEREIRA",66001]
[null,null,null,null,null,null,null,null,null,null,null,null,null,null,{"$error":"#N/A"},null,null,null,null,null,"PESCA",15542]
[null,null,null,null,null,null,null,null,null,null,null,null,null,null,{"$error":"#N/A"},null,null,null,null,null,"PIAMONTE",19533]
[null,null,null,null,null,null,null,null,null,null,null,null,null,null,{"$error":"#N/A"},null,null,null,null,null,"PIEDECUESTA",68547]
[null,null,null,null,null,null,null,null,null,null,null,null,null,null,{"$error":"#N/A"},null,null,null,null,null,"PIEDRAS",73547]
[null,null,null,null,null,null,null,null,null,null,null,null,null,null,{"$error":"#N/A"},null,null,null,null,null,"PIENDAMO",19548]
[null,null,null,null,null,null,null,null,null,null,null,null,null,null,{"$error":"#N/A"},null,null,null,null,null,"PIJAO",63548]
[null,null,null,null,null,null,null,null,null,null,null,null,null,null,{"$error":"#N/A"},null,null,null,null,null,"PIJINO DEL CARMEN",47545]
[null,null,null,null,null,null,null,null,null,null,null,null,null,null,{"$error":"#N/A"},null,null,null,null,null,"PINCHOTE",68549]
[null,null,null,null,null,null,null,null,null,null,null,null,null,null,{"$error":"#N/A"},null,null,null,null,null,"PINILLOS",13549]
[null,null,null,null,null,null,null,null,null,null,null,null,null,null,{"$error":"#N/A"},null,null,null,null,null,"PIOJO",8549]
[null,null,null,null,null,null,null,null,null,null,null,null,null,null,{"$error":"#N/A"},null,null,null,null,null,"PISBA",15550]
[null,null,null,null,null,null,null,null,null,null,null,null,null,null,{"$error":"#N/A"},null,null,null,null,null,"PITAL",41548]
[null,null,null,null,null,null,null,null,null,null,null,null,null,null,{"$error":"#N/A"},null,null,null,null,null,"PITALITO",41551]
[null,null,null,null,null,null,null,null,null,null,null,null,null,null,{"$error":"#N/A"},null,null,null,null,null,"PIVIJAY",47551]
[null,null,null,null,null,null,null,null,null,null,null,null,null,null,{"$error":"#N/A"},null,null,null,null,null,"PIZARRO",52520]
[null,null,null,null,null,null,null,null,null,null,null,null,null,null,{"$error":"#N/A"},null,null,null,null,null,"PLANADAS",73555]
[null,null,null,null,null,null,null,null,null,null,null,null,null,null,{"$error":"#N/A"},null,null,null,null,null,"PLANETA RICA",23555]
[null,null,null,null,null,null,null,null,null,null,null,null,null,null,{"$error":"#N/A"},null,null,null,null,null,"PLATO",47555]
[null,null,null,null,null,null,null,null,null,null,null,null,null,null,{"$error":"#N/A"},null,null,null,null,null,"POLICARPA",52540]
[null,null,null,null,null,null,null,null,null,null,null,null,null,null,{"$error":"#N/A"},null,null,null,null,null,"POLO NUEVO",8558]
[null,null,null,null,null,null,null,null,null,null,null,null,null,null,{"$error":"#N/A"},null,null,null,null,null,"PONEDERA",8560]
[null,null,null,null,null,null,null,null,null,null,null,null,null,null,{"$error":"#N/A"},null,null,null,null,null,"POPAYAN",19001]
[null,null,null,null,null,null,null,null,null,null,null,null,null,null,{"$error":"#N/A"},null,null,null,null,null,"PORE",85263]
[null,null,null,null,null,null,null,null,null,null,null,null,null,null,{"$error":"#N/A"},null,null,null,null,null,"POTOSI",52560]
[null,null,null,null,null,null,null,null,null,null,null,null,null,null,{"$error":"#N/A"},null,null,null,null,null,"PRADERA",76563]
[null,null,null,null,null,null,null,null,null,null,null,null,null,null,{"$error":"#N/A"},null,null,null,null,null,"PRADO",73563]
[null,null,null,null,null,null,null,null,null,null,null,null,null,null,{"$error":"#N/A"},null,null,null,null,null,"PROVIDENCIA",88564]
[null,null,null,null,null,null,null,null,null,null,null,null,null,null,{"$error":"#N/A"},null,null,null,null,null,"PROVIDENCIA - NARINO",52565]
[null,null,null,null,null,null,null,null,null,null,null,null,null,null,{"$error":"#N/A"},null,null,null,null,null,"PTO COLOMBIA - ATLANTICO",8573]
[null,null,null,null,null,null,null,null,null,null,null,null,null,null,{"$error":"#N/A"},null,null,null,null,null,"PTO COLOMBIA - GUAINIA",94884]
[null,null,null,null,null,null,null,null,null,null,null,null,null,null,{"$error":"#N/A"},null,null,null,null,null,"PTO RICO - CAQUETA",18592]
[null,null,null,null,null,null,null,null,null,null,null,null,null,null,{"$error":"#N/A"},null,null,null,null,null,"PTO RICO - META",50590]
[null,null,null,null,null,null,null,null,null,null,null,null,null,null,{"$error":"#N/A"},null,null,null,null,null,"PTO SANTANDER - AMA",91669]
[null,null,null,null,null,null,null,null,null,null,null,null,null,null,{"$error":"#N/A"},null,null,null,null,null,"PTO SANTANDER - NTE",54553]
[null,null,null,null,null,null,null,null,null,null,null,null,null,null,{"$error":"#N/A"},null,null,null,null,null,"PUEBLO BELLO",20570]
[null,null,null,null,null,null,null,null,null,null,null,null,null,null,{"$f":"VLOOKUP(K720,$U$16:$V$1123,2,0)","v":{"$error":"#N/A"}},null,null,null,null,null,"PUEBLO NUEVO",23570]
[null,null,null,null,null,null,null,null,null,null,null,null,null,null,{"$error":"#N/A"},null,null,null,null,null,"PUEBLO RICO",66572]
[null,null,null,null,null,null,null,null,null,null,null,null,null,null,{"$error":"#N/A"},null,null,null,null,null,"PUEBLORRICO",5576]
[null,null,null,null,null,null,null,null,null,null,null,null,null,null,{"$error":"#N/A"},null,null,null,null,null,"PUEBLOVIEJO",47570]
[null,null,null,null,null,null,null,null,null,null,null,null,null,null,{"$error":"#N/A"},null,null,null,null,null,"PUENTE NACIONAL",68572]
[null,null,null,null,null,null,null,null,null,null,null,null,null,null,{"$error":"#N/A"},null,null,null,null,null,"PUERRES",52573]
[null,null,null,null,null,null,null,null,null,null,null,null,null,null,{"$error":"#N/A"},null,null,null,null,null,"PUERTO ALEGRIA (CD)",91530]
[null,null,null,null,null,null,null,null,null,null,null,null,null,null,{"$error":"#N/A"},null,null,null,null,null,"PUERTO ARICA (CD)",91536]
[null,null,null,null,null,null,null,null,null,null,null,null,null,null,{"$error":"#N/A"},null,null,null,null,null,"PUERTO ASIS",86568]
[null,null,null,null,null,null,null,null,null,null,null,null,null,null,{"$error":"#N/A"},null,null,null,null,null,"PUERTO BERRIO",5579]
[null,null,null,null,null,null,null,null,null,null,null,null,null,null,{"$error":"#N/A"},null,null,null,null,null,"PUERTO BOYACA",15572]
[null,null,null,null,null,null,null,null,null,null,null,null,null,null,{"$error":"#N/A"},null,null,null,null,null,"PUERTO CARRENO",99001]
[null,null,null,null,null,null,null,null,null,null,null,null,null,null,{"$error":"#N/A"},null,null,null,null,null,"PUERTO CAYCEDO",86569]
[null,null,null,null,null,null,null,null,null,null,null,null,null,null,{"$error":"#N/A"},null,null,null,null,null,"PUERTO CONCORDIA",50450]
[null,null,null,null,null,null,null,null,null,null,null,null,null,null,{"$error":"#N/A"},null,null,null,null,null,"PUERTO ESCONDIDO",23574]
[null,null,null,null,null,null,null,null,null,null,null,null,null,null,{"$error":"#N/A"},null,null,null,null,null,"PUERTO GAITAN",50568]
[null,null,null,null,null,null,null,null,null,null,null,null,null,null,{"$error":"#N/A"},null,null,null,null,null,"PUERTO GUZMAN",86571]
[null,null,null,null,null,null,null,null,null,null,null,null,null,null,{"$error":"#N/A"},null,null,null,null,null,"PUERTO INIRIDA",94001]
[null,null,null,null,null,null,null,null,null,null,null,null,null,null,{"$error":"#N/A"},null,null,null,null,null,"PUERTO LEGUIZAMO",86573]
[null,null,null,null,null,null,null,null,null,null,null,null,null,null,{"$error":"#N/A"},null,null,null,null,null,"PUERTO LIBERTADOR",23580]
[null,null,null,null,null,null,null,null,null,null,null,null,null,null,{"$error":"#N/A"},null,null,null,null,null,"PUERTO LLERAS",50577]
[null,null,null,null,null,null,null,null,null,null,null,null,null,null,{"$error":"#N/A"},null,null,null,null,null,"PUERTO LOPEZ",50573]
[null,null,null,null,null,null,null,null,null,null,null,null,null,null,{"$error":"#N/A"},null,null,null,null,null,"PUERTO NARE",5585]
[null,null,null,null,null,null,null,null,null,null,null,null,null,null,{"$error":"#N/A"},null,null,null,null,null,"PUERTO NARINO",91540]
[null,null,null,null,null,null,null,null,null,null,null,null,null,null,{"$error":"#N/A"},null,null,null,null,null,"PUERTO PARRA",68573]
[null,null,null,null,null,null,null,null,null,null,null,null,null,null,{"$error":"#N/A"},null,null,null,null,null,"PUERTO RONDON",81591]
[null,null,null,null,null,null,null,null,null,null,null,null,null,null,{"$error":"#N/A"},null,null,null,null,null,"PUERTO SALGAR",25572]
[null,null,null,null,null,null,null,null,null,null,null,null,null,null,{"$error":"#N/A"},null,null,null,null,null,"PUERTO TEJADA",19573]
[null,null,null,null,null,null,null,null,null,null,null,null,null,null,{"$error":"#N/A"},null,null,null,null,null,"PUERTO TRIUNFO",5591]
[null,null,null,null,null,null,null,null,null,null,null,null,null,null,{"$error":"#N/A"},null,null,null,null,null,"PUERTO WILCHES",68575]
[null,null,null,null,null,null,null,null,null,null,null,null,null,null,{"$error":"#N/A"},null,null,null,null,null,"PULI",25580]
[null,null,null,null,null,null,null,null,null,null,null,null,null,null,{"$error":"#N/A"},null,null,null,null,null,"PUPIALES",52585]
[null,null,null,null,null,null,null,null,null,null,null,null,null,null,{"$error":"#N/A"},null,null,null,null,null,"PURACE",19585]
[null,null,null,null,null,null,null,null,null,null,null,null,null,null,{"$error":"#N/A"},null,null,null,null,null,"PURIFICACION",73585]
[null,null,null,null,null,null,null,null,null,null,null,null,null,null,{"$error":"#N/A"},null,null,null,null,null,"PURISIMA",23586]
[null,null,null,null,null,null,null,null,null,null,null,null,null,null,{"$error":"#N/A"},null,null,null,null,null,"QUEBRADANEGRA",25592]
[null,null,null,null,null,null,null,null,null,null,null,null,null,null,{"$error":"#N/A"},null,null,null,null,null,"QUETAME",25594]
[null,null,null,null,null,null,null,null,null,null,null,null,null,null,{"$error":"#N/A"},null,null,null,null,null,"QUIBDO",27001]
[null,null,null,null,null,null,null,null,null,null,null,null,null,null,{"$error":"#N/A"},null,null,null,null,null,"QUIMBAYA",63594]
[null,null,null,null,null,null,null,null,null,null,null,null,null,null,{"$error":"#N/A"},null,null,null,null,null,"QUINCHIA",66594]
[null,null,null,null,null,null,null,null,null,null,null,null,null,null,{"$error":"#N/A"},null,null,null,null,null,"QUIPAMA",15580]
[null,null,null,null,null,null,null,null,null,null,null,null,null,null,{"$error":"#N/A"},null,null,null,null,null,"QUIPILE",25596]
[null,null,null,null,null,null,null,null,null,null,null,null,null,null,{"$error":"#N/A"},null,null,null,null,null,"RAFAEL REYES",25599]
[null,null,null,null,null,null,null,null,null,null,null,null,null,null,{"$error":"#N/A"},null,null,null,null,null,"RAGONVALIA",54599]
[null,null,null,null,null,null,null,null,null,null,null,null,null,null,{"$error":"#N/A"},null,null,null,null,null,"RAMIRIQUI",15599]
[null,null,null,null,null,null,null,null,null,null,null,null,null,null,{"$error":"#N/A"},null,null,null,null,null,"RAQUIRA",15600]
[null,null,null,null,null,null,null,null,null,null,null,null,null,null,{"$error":"#N/A"},null,null,null,null,null,"RECETOR",85279]
[null,null,null,null,null,null,null,null,null,null,null,null,null,null,{"$error":"#N/A"},null,null,null,null,null,"REGIDOR",13580]
[null,null,null,null,null,null,null,null,null,null,null,null,null,null,{"$error":"#N/A"},null,null,null,null,null,"REMEDIOS",5604]
[null,null,null,null,null,null,null,null,null,null,null,null,null,null,{"$error":"#N/A"},null,null,null,null,null,"REMOLINO",47605]
[null,null,null,null,null,null,null,null,null,null,null,null,null,null,{"$error":"#N/A"},null,null,null,null,null,"REPELON",8606]
[null,null,null,null,null,null,null,null,null,null,null,null,null,null,{"$error":"#N/A"},null,null,null,null,null,"RESTREPO - META",50606]
[null,null,null,null,null,null,null,null,null,null,null,null,null,null,{"$error":"#N/A"},null,null,null,null,null,"RESTREPO - VALLE",76606]
[null,null,null,null,null,null,null,null,null,null,null,null,null,null,{"$error":"#N/A"},null,null,null,null,null,"RETIRO",5607]
[null,null,null,null,null,null,null,null,null,null,null,null,null,null,{"$error":"#N/A"},null,null,null,null,null,"RICAURTE - CUNDINAMARCA",25612]
[null,null,null,null,null,null,null,null,null,null,null,null,null,null,{"$error":"#N/A"},null,null,null,null,null,"RICAURTE - NARINO",52612]
[null,null,null,null,null,null,null,null,null,null,null,null,null,null,{"$error":"#N/A"},null,null,null,null,null,"RIO DE ORO",20614]
[null,null,null,null,null,null,null,null,null,null,null,null,null,null,{"$error":"#N/A"},null,null,null,null,null,"RIO QUITO",27600]
[null,null,null,null,null,null,null,null,null,null,null,null,null,null,{"$error":"#N/A"},null,null,null,null,null,"RIO VIEJO",13600]
[null,null,null,null,null,null,null,null,null,null,null,null,null,null,{"$error":"#N/A"},null,null,null,null,null,"RIOBLANCO",73616]
[null,null,null,null,null,null,null,null,null,null,null,null,null,null,{"$error":"#N/A"},null,null,null,null,null,"RIOFRIO",76616]
[null,null,null,null,null,null,null,null,null,null,null,null,null,null,{"$error":"#N/A"},null,null,null,null,null,"RIOHACHA",44001]
[null,null,null,null,null,null,null,null,null,null,null,null,null,null,{"$error":"#N/A"},null,null,null,null,null,"RIONEGRO - ANTIOQUIA",5615]
[null,null,null,null,null,null,null,null,null,null,null,null,null,null,{"$error":"#N/A"},null,null,null,null,null,"RIONEGRO - SANTANDER",68615]
[null,null,null,null,null,null,null,null,null,null,null,null,null,null,{"$f":"VLOOKUP(K784,$U$16:$V$1123,2,0)","v":{"$error":"#N/A"}},null,null,null,null,null,"RIOSUCIO - CALDAS",17614]
[null,null,null,null,null,null,null,null,null,null,null,null,null,null,{"$error":"#N/A"},null,null,null,null,null,"RIOSUCIO - CHOCO",27615]
[null,null,null,null,null,null,null,null,null,null,null,null,null,null,{"$error":"#N/A"},null,null,null,null,null,"RISARALDA",17616]
[null,null,null,null,null,null,null,null,null,null,null,null,null,null,{"$error":"#N/A"},null,null,null,null,null,"RIVERA",41615]
[null,null,null,null,null,null,null,null,null,null,null,null,null,null,{"$error":"#N/A"},null,null,null,null,null,"ROBERTO PAYAN",52621]
[null,null,null,null,null,null,null,null,null,null,null,null,null,null,{"$error":"#N/A"},null,null,null,null,null,"ROBLES (LA PAZ)",20621]
[null,null,null,null,null,null,null,null,null,null,null,null,null,null,{"$error":"#N/A"},null,null,null,null,null,"ROLDANILLO",76622]
[null,null,null,null,null,null,null,null,null,null,null,null,null,null,{"$error":"#N/A"},null,null,null,null,null,"RONCESVALLES",73622]
[null,null,null,null,null,null,null,null,null,null,null,null,null,null,{"$error":"#N/A"},null,null,null,null,null,"RONDON",15621]
[null,null,null,null,null,null,null,null,null,null,null,null,null,null,{"$error":"#N/A"},null,null,null,null,null,"ROSAS",19622]
[null,null,null,null,null,null,null,null,null,null,null,null,null,null,{"$error":"#N/A"},null,null,null,null,null,"ROVIRA",73624]
[null,null,null,null,null,null,null,null,null,null,null,null,null,null,{"$error":"#N/A"},null,null,null,null,null,"SABANALARGA - ANTIOQUIA",5628]
[null,null,null,null,null,null,null,null,null,null,null,null,null,null,{"$error":"#N/A"},null,null,null,null,null,"SABANALARGA - ATLANTICO",8638]
[null,null,null,null,null,null,null,null,null,null,null,null,null,null,{"$error":"#N/A"},null,null,null,null,null,"SABANA DE TORRES",68655]
[null,null,null,null,null,null,null,null,null,null,null,null,null,null,{"$error":"#N/A"},null,null,null,null,null,"SABANAGRANDE",8634]
[null,null,null,null,null,null,null,null,null,null,null,null,null,null,{"$error":"#N/A"},null,null,null,null,null,"SABANALARGA",85300]
[null,null,null,null,null,null,null,null,null,null,null,null,null,null,{"$error":"#N/A"},null,null,null,null,null,"SABANAS DE SAN ANGEL",47660]
[null,null,null,null,null,null,null,null,null,null,null,null,null,null,{"$error":"#N/A"},null,null,null,null,null,"SABANETA",5631]
[null,null,null,null,null,null,null,null,null,null,null,null,null,null,{"$error":"#N/A"},null,null,null,null,null,"SABOYA",15632]
[null,null,null,null,null,null,null,null,null,null,null,null,null,null,{"$error":"#N/A"},null,null,null,null,null,"SACAMA",85315]
[null,null,null,null,null,null,null,null,null,null,null,null,null,null,{"$error":"#N/A"},null,null,null,null,null,"SACHICA",15638]
[null,null,null,null,null,null,null,null,null,null,null,null,null,null,{"$error":"#N/A"},null,null,null,null,null,"SAHAGUN",23660]
[null,null,null,null,null,null,null,null,null,null,null,null,null,null,{"$error":"#N/A"},null,null,null,null,null,"SALADOBLANCO",41660]
[null,null,null,null,null,null,null,null,null,null,null,null,null,null,{"$error":"#N/A"},null,null,null,null,null,"SALAMINA - CALDAS",17653]
[null,null,null,null,null,null,null,null,null,null,null,null,null,null,{"$error":"#N/A"},null,null,null,null,null,"SALAMINA - MAGDALENA",47675]
[null,null,null,null,null,null,null,null,null,null,null,null,null,null,{"$error":"#N/A"},null,null,null,null,null,"SALAZAR",54660]
[null,null,null,null,null,null,null,null,null,null,null,null,null,null,{"$error":"#N/A"},null,null,null,null,null,"SALDANA",73671]
[null,null,null,null,null,null,null,null,null,null,null,null,null,null,{"$error":"#N/A"},null,null,null,null,null,"SALENTO",63690]
[null,null,null,null,null,null,null,null,null,null,null,null,null,null,{"$error":"#N/A"},null,null,null,null,null,"SALGAR",5642]
[null,null,null,null,null,null,null,null,null,null,null,null,null,null,{"$error":"#N/A"},null,null,null,null,null,"SAMACA",15646]
[null,null,null,null,null,null,null,null,null,null,null,null,null,null,{"$error":"#N/A"},null,null,null,null,null,"SAMANA",17662]
[null,null,null,null,null,null,null,null,null,null,null,null,null,null,{"$error":"#N/A"},null,null,null,null,null,"SAMANIEGO",52678]
[null,null,null,null,null,null,null,null,null,null,null,null,null,null,{"$error":"#N/A"},null,null,null,null,null,"SAMPUES",70670]
[null,null,null,null,null,null,null,null,null,null,null,null,null,null,{"$error":"#N/A"},null,null,null,null,null,"SAN  ANTONIO TEQUENDAMA",25645]
[null,null,null,null,null,null,null,null,null,null,null,null,null,null,{"$error":"#N/A"},null,null,null,null,null,"SAN  JUAN DE ARAMA",50683]
[null,null,null,null,null,null,null,null,null,null,null,null,null,null,{"$error":"#N/A"},null,null,null,null,null,"SAN  VICENTE CAGUAN",18753]
[null,null,null,null,null,null,null,null,null,null,null,null,null,null,{"$error":"#N/A"},null,null,null,null,null,"SAN AGUSTIN",41668]
[null,null,null,null,null,null,null,null,null,null,null,null,null,null,{"$error":"#N/A"},null,null,null,null,null,"SAN ALBERTO",20710]
[null,null,null,null,null,null,null,null,null,null,null,null,null,null,{"$error":"#N/A"},null,null,null,null,null,"SAN ANDRES - ANTIOQUIA",5647]
[null,null,null,null,null,null,null,null,null,null,null,null,null,null,{"$error":"#N/A"},null,null,null,null,null,"SAN ANDRES - ISLA",88001]
[null,null,null,null,null,null,null,null,null,null,null,null,null,null,{"$error":"#N/A"},null,null,null,null,null,"SAN ANDRES - SANTANDER",68669]
[null,null,null,null,null,null,null,null,null,null,null,null,null,null,{"$error":"#N/A"},null,null,null,null,null,"SAN ANDRES SOTAVENTO",23670]
[null,null,null,null,null,null,null,null,null,null,null,null,null,null,{"$error":"#N/A"},null,null,null,null,null,"SAN ANTERO",23672]
[null,null,null,null,null,null,null,null,null,null,null,null,null,null,{"$error":"#N/A"},null,null,null,null,null,"SAN ANTONIO",73675]
[null,null,null,null,null,null,null,null,null,null,null,null,null,null,{"$error":"#N/A"},null,null,null,null,null,"SAN BENITO",68673]
[null,null,null,null,null,null,null,null,null,null,null,null,null,null,{"$error":"#N/A"},null,null,null,null,null,"SAN BENITO ABAD",70678]
[null,null,null,null,null,null,null,null,null,null,null,null,null,null,{"$error":"#N/A"},null,null,null,null,null,"SAN BERNARDO - CUNDINAMARCA",25649]
[null,null,null,null,null,null,null,null,null,null,null,null,null,null,{"$error":"#N/A"},null,null,null,null,null,"SAN BERNARDO - NARINO",52685]
[null,null,null,null,null,null,null,null,null,null,null,null,null,null,{"$error":"#N/A"},null,null,null,null,null,"SAN BERNARDO VIENTO",23675]
[null,null,null,null,null,null,null,null,null,null,null,null,null,null,{"$error":"#N/A"},null,null,null,null,null,"SAN CALIXTO",54670]
[null,null,null,null,null,null,null,null,null,null,null,null,null,null,{"$error":"#N/A"},null,null,null,null,null,"SAN CARLOS - ANTIOQUIA",5649]
[null,null,null,null,null,null,null,null,null,null,null,null,null,null,{"$error":"#N/A"},null,null,null,null,null,"SAN CARLOS - CORDOBA",23678]
[null,null,null,null,null,null,null,null,null,null,null,null,null,null,{"$error":"#N/A"},null,null,null,null,null,"SAN CARLOS GUAROA",50680]
[null,null,null,null,null,null,null,null,null,null,null,null,null,null,{"$error":"#N/A"},null,null,null,null,null,"SAN CRISTOBAL",13620]
[null,null,null,null,null,null,null,null,null,null,null,null,null,null,{"$error":"#N/A"},null,null,null,null,null,"SAN DIEGO",20750]
[null,null,null,null,null,null,null,null,null,null,null,null,null,null,{"$error":"#N/A"},null,null,null,null,null,"SAN EDUARDO",15660]
[null,null,null,null,null,null,null,null,null,null,null,null,null,null,{"$error":"#N/A"},null,null,null,null,null,"SAN ESTANISLAO",13647]
[null,null,null,null,null,null,null,null,null,null,null,null,null,null,{"$error":"#N/A"},null,null,null,null,null,"SAN FELIPE",94883]
[null,null,null,null,null,null,null,null,null,null,null,null,null,null,{"$error":"#N/A"},null,null,null,null,null,"SAN FERNANDO",13650]
[null,null,null,null,null,null,null,null,null,null,null,null,null,null,{"$error":"#N/A"},null,null,null,null,null,"SAN FRANCISCO-ANTIOQUIA",5652]
[null,null,null,null,null,null,null,null,null,null,null,null,null,null,{"$error":"#N/A"},null,null,null,null,null,"SAN FRANCISCO-CUNDINAMARCA",25658]
[null,null,null,null,null,null,null,null,null,null,null,null,null,null,{"$error":"#N/A"},null,null,null,null,null,"SAN FRANCISCO-PUTUMAYO",86755]
[null,null,null,null,null,null,null,null,null,null,null,null,null,null,{"$error":"#N/A"},null,null,null,null,null,"SAN GIL",68679]
[null,null,null,null,null,null,null,null,null,null,null,null,null,null,{"$error":"#N/A"},null,null,null,null,null,"SAN JACINTO",13654]
[null,null,null,null,null,null,null,null,null,null,null,null,null,null,{"$f":"VLOOKUP(K848,$U$16:$V$1123,2,0)","v":{"$error":"#N/A"}},null,null,null,null,null,"SAN JACINTO DEL CAUCA",13655]
[null,null,null,null,null,null,null,null,null,null,null,null,null,null,{"$error":"#N/A"},null,null,null,null,null,"SAN JERONIMO",5656]
[null,null,null,null,null,null,null,null,null,null,null,null,null,null,{"$error":"#N/A"},null,null,null,null,null,"SAN JOAQUIN",68682]
[null,null,null,null,null,null,null,null,null,null,null,null,null,null,{"$error":"#N/A"},null,null,null,null,null,"SAN JOSE",17665]
[null,null,null,null,null,null,null,null,null,null,null,null,null,null,{"$error":"#N/A"},null,null,null,null,null,"SAN JOSE - GUAVIARE",95001]
[null,null,null,null,null,null,null,null,null,null,null,null,null,null,{"$error":"#N/A"},null,null,null,null,null,"SAN JOSE DE FRAGUA",18610]
[null,null,null,null,null,null,null,null,null,null,null,null,null,null,{"$error":"#N/A"},null,null,null,null,null,"SAN JOSE DE MIRANDA",68684]
[null,null,null,null,null,null,null,null,null,null,null,null,null,null,{"$error":"#N/A"},null,null,null,null,null,"SAN JOSE DE MONTANA",5658]
[null,null,null,null,null,null,null,null,null,null,null,null,null,null,{"$error":"#N/A"},null,null,null,null,null,"SAN JOSE DE OCUNE",99760]
[null,null,null,null,null,null,null,null,null,null,null,null,null,null,{"$error":"#N/A"},null,null,null,null,null,"SAN JOSE DE PARE",15664]
[null,null,null,null,null,null,null,null,null,null,null,null,null,null,{"$error":"#N/A"},null,null,null,null,null,"SAN JOSE DEL PALMAR",27660]
[null,null,null,null,null,null,null,null,null,null,null,null,null,null,{"$error":"#N/A"},null,null,null,null,null,"SAN JUAN DE BETULIA",70702]
[null,null,null,null,null,null,null,null,null,null,null,null,null,null,{"$error":"#N/A"},null,null,null,null,null,"SAN JUAN DE RIOSECO",25662]
[null,null,null,null,null,null,null,null,null,null,null,null,null,null,{"$error":"#N/A"},null,null,null,null,null,"SAN JUAN DE URABA",5659]
[null,null,null,null,null,null,null,null,null,null,null,null,null,null,{"$error":"#N/A"},null,null,null,null,null,"SAN JUAN DEL CESAR",44650]
[null,null,null,null,null,null,null,null,null,null,null,null,null,null,{"$error":"#N/A"},null,null,null,null,null,"SAN JUAN NEPOMUCENO",13657]
[null,null,null,null,null,null,null,null,null,null,null,null,null,null,{"$error":"#N/A"},null,null,null,null,null,"SAN JUANITO",50686]
[null,null,null,null,null,null,null,null,null,null,null,null,null,null,{"$error":"#N/A"},null,null,null,null,null,"SAN LORENZO",52687]
[null,null,null,null,null,null,null,null,null,null,null,null,null,null,{"$error":"#N/A"},null,null,null,null,null,"SAN LUIS - ANTIOQUIA",5660]
[null,null,null,null,null,null,null,null,null,null,null,null,null,null,{"$error":"#N/A"},null,null,null,null,null,"SAN LUIS - TOLIMA",73678]
[null,null,null,null,null,null,null,null,null,null,null,null,null,null,{"$error":"#N/A"},null,null,null,null,null,"SAN LUIS DE GACENO",15667]
[null,null,null,null,null,null,null,null,null,null,null,null,null,null,{"$error":"#N/A"},null,null,null,null,null,"SAN LUIS DE PALENQUE",85325]
[null,null,null,null,null,null,null,null,null,null,null,null,null,null,{"$error":"#N/A"},null,null,null,null,null,"SAN MARCOS",70708]
[null,null,null,null,null,null,null,null,null,null,null,null,null,null,{"$error":"#N/A"},null,null,null,null,null,"SAN MARTIN - CESAR",20770]
[null,null,null,null,null,null,null,null,null,null,null,null,null,null,{"$error":"#N/A"},null,null,null,null,null,"SAN MARTIN - META",50689]
[null,null,null,null,null,null,null,null,null,null,null,null,null,null,{"$error":"#N/A"},null,null,null,null,null,"SAN MARTIN DE LOBA",13667]
[null,null,null,null,null,null,null,null,null,null,null,null,null,null,{"$error":"#N/A"},null,null,null,null,null,"SAN MATEO",15673]
[null,null,null,null,null,null,null,null,null,null,null,null,null,null,{"$error":"#N/A"},null,null,null,null,null,"SAN MIGUEL - PUTUMAYO",86757]
[null,null,null,null,null,null,null,null,null,null,null,null,null,null,{"$error":"#N/A"},null,null,null,null,null,"SAN MIGUEL - SANTANDER",68686]
[null,null,null,null,null,null,null,null,null,null,null,null,null,null,{"$error":"#N/A"},null,null,null,null,null,"SAN MIGUEL DE SEMA",15676]
[null,null,null,null,null,null,null,null,null,null,null,null,null,null,{"$error":"#N/A"},null,null,null,null,null,"SAN ONOFRE",70713]
[null,null,null,null,null,null,null,null,null,null,null,null,null,null,{"$error":"#N/A"},null,null,null,null,null,"SAN PABLO - BOLIVAR",13670]
[null,null,null,null,null,null,null,null,null,null,null,null,null,null,{"$error":"#N/A"},null,null,null,null,null,"SAN PABLO - NARINO",52693]
[null,null,null,null,null,null,null,null,null,null,null,null,null,null,{"$error":"#N/A"},null,null,null,null,null,"SAN PABLO DE BORBUR",15681]
[null,null,null,null,null,null,null,null,null,null,null,null,null,null,{"$error":"#N/A"},null,null,null,null,null,"SAN PEDRO",76670]
[null,null,null,null,null,null,null,null,null,null,null,null,null,null,{"$error":"#N/A"},null,null,null,null,null,"SAN PEDRO - ANTIOQUIA",5664]
[null,null,null,null,null,null,null,null,null,null,null,null,null,null,{"$error":"#N/A"},null,null,null,null,null,"SAN PEDRO - SUCRE",70717]
[null,null,null,null,null,null,null,null,null,null,null,null,null,null,{"$error":"#N/A"},null,null,null,null,null,"SAN PEDRO DE CARTAGO",52694]
[null,null,null,null,null,null,null,null,null,null,null,null,null,null,{"$error":"#N/A"},null,null,null,null,null,"SAN PEDRO DE URABA",5665]
[null,null,null,null,null,null,null,null,null,null,null,null,null,null,{"$error":"#N/A"},null,null,null,null,null,"SAN PELAYO",23686]
[null,null,null,null,null,null,null,null,null,null,null,null,null,null,{"$error":"#N/A"},null,null,null,null,null,"SAN RAFAEL",5667]
[null,null,null,null,null,null,null,null,null,null,null,null,null,null,{"$error":"#N/A"},null,null,null,null,null,"SAN ROQUE",5670]
[null,null,null,null,null,null,null,null,null,null,null,null,null,null,{"$error":"#N/A"},null,null,null,null,null,"SAN SEBASTIAN",19693]
[null,null,null,null,null,null,null,null,null,null,null,null,null,null,{"$error":"#N/A"},null,null,null,null,null,"SAN VICENTE",5674]
[null,null,null,null,null,null,null,null,null,null,null,null,null,null,{"$error":"#N/A"},null,null,null,null,null,"SAN VICENTE CHUCURI",68689]
[null,null,null,null,null,null,null,null,null,null,null,null,null,null,{"$error":"#N/A"},null,null,null,null,null,"SAN ZENON",47703]
[null,null,null,null,null,null,null,null,null,null,null,null,null,null,{"$error":"#N/A"},null,null,null,null,null,"SANDONA",52683]
[null,null,null,null,null,null,null,null,null,null,null,null,null,null,{"$error":"#N/A"},null,null,null,null,null,"SANTA ANA",47707]
[null,null,null,null,null,null,null,null,null,null,null,null,null,null,{"$error":"#N/A"},null,null,null,null,null,"SANTA CATALINA",13673]
[null,null,null,null,null,null,null,null,null,null,null,null,null,null,{"$error":"#N/A"},null,null,null,null,null,"SANTA HELENA",68720]
[null,null,null,null,null,null,null,null,null,null,null,null,null,null,{"$error":"#N/A"},null,null,null,null,null,"SANTA ISABEL",73686]
[null,null,null,null,null,null,null,null,null,null,null,null,null,null,{"$error":"#N/A"},null,null,null,null,null,"SANTA LUCIA",8675]
[null,null,null,null,null,null,null,null,null,null,null,null,null,null,{"$error":"#N/A"},null,null,null,null,null,"SANTA MARIA - BOYACA",15690]
[null,null,null,null,null,null,null,null,null,null,null,null,null,null,{"$error":"#N/A"},null,null,null,null,null,"SANTA MARIA - HUILA",41676]
[null,null,null,null,null,null,null,null,null,null,null,null,null,null,{"$error":"#N/A"},null,null,null,null,null,"SANTA MARTA",47001]
[null,null,null,null,null,null,null,null,null,null,null,null,null,null,{"$error":"#N/A"},null,null,null,null,null,"SANTA RITA",99572]
[null,null,null,null,null,null,null,null,null,null,null,null,null,null,{"$error":"#N/A"},null,null,null,null,null,"SANTA ROSA",13683]
[null,null,null,null,null,null,null,null,null,null,null,null,null,null,{"$error":"#N/A"},null,null,null,null,null,"SANTA ROSA D VITERBO",15693]
[null,null,null,null,null,null,null,null,null,null,null,null,null,null,{"$error":"#N/A"},null,null,null,null,null,"SANTA ROSA DE CABAL",66682]
[null,null,null,null,null,null,null,null,null,null,null,null,null,null,{"$error":"#N/A"},null,null,null,null,null,"SANTA ROSA DE OSOS",5686]
[null,null,null,null,null,null,null,null,null,null,null,null,null,null,{"$error":"#N/A"},null,null,null,null,null,"SANTA ROSA DEL SUR",13688]
[null,null,null,null,null,null,null,null,null,null,null,null,null,null,{"$error":"#N/A"},null,null,null,null,null,"SANTA ROSALIA",99666]
[null,null,null,null,null,null,null,null,null,null,null,null,null,null,{"$error":"#N/A"},null,null,null,null,null,"SANTA SOFIA",15696]
[null,null,null,null,null,null,null,null,null,null,null,null,null,null,{"$error":"#N/A"},null,null,null,null,null,"SANTACRUZ",52699]
[null,null,null,null,null,null,null,null,null,null,null,null,null,null,{"$f":"VLOOKUP(K912,$U$16:$V$1123,2,0)","v":{"$error":"#N/A"}},null,null,null,null,null,"SANTANA",15686]
[null,null,null,null,null,null,null,null,null,null,null,null,null,null,{"$error":"#N/A"},null,null,null,null,null,"SANTIAGO - N. SANTANDER",54680]
[null,null,null,null,null,null,null,null,null,null,null,null,null,null,{"$error":"#N/A"},null,null,null,null,null,"SANTIAGO - PUTUMAYO",86760]
[null,null,null,null,null,null,null,null,null,null,null,null,null,null,{"$error":"#N/A"},null,null,null,null,null,"SANTO DOMINGO",5690]
[null,null,null,null,null,null,null,null,null,null,null,null,null,null,{"$error":"#N/A"},null,null,null,null,null,"SANTO TOMAS",8685]
[null,null,null,null,null,null,null,null,null,null,null,null,null,null,{"$error":"#N/A"},null,null,null,null,null,"SANTUARIO - ANTIOQUIA",5697]
[null,null,null,null,null,null,null,null,null,null,null,null,null,null,{"$error":"#N/A"},null,null,null,null,null,"SANTUARIO - RISARALDA",66687]
[null,null,null,null,null,null,null,null,null,null,null,null,null,null,{"$error":"#N/A"},null,null,null,null,null,"SAPUYES",52720]
[null,null,null,null,null,null,null,null,null,null,null,null,null,null,{"$error":"#N/A"},null,null,null,null,null,"SARAVENA",81736]
[null,null,null,null,null,null,null,null,null,null,null,null,null,null,{"$error":"#N/A"},null,null,null,null,null,"SARDINATA",54720]
[null,null,null,null,null,null,null,null,null,null,null,null,null,null,{"$error":"#N/A"},null,null,null,null,null,"SASAIMA",25718]
[null,null,null,null,null,null,null,null,null,null,null,null,null,null,{"$error":"#N/A"},null,null,null,null,null,"SATIVANORTE",15720]
[null,null,null,null,null,null,null,null,null,null,null,null,null,null,{"$error":"#N/A"},null,null,null,null,null,"SATIVASUR",15723]
[null,null,null,null,null,null,null,null,null,null,null,null,null,null,{"$error":"#N/A"},null,null,null,null,null,"SEGOVIA",5736]
[null,null,null,null,null,null,null,null,null,null,null,null,null,null,{"$error":"#N/A"},null,null,null,null,null,"SESQUILE",25736]
[null,null,null,null,null,null,null,null,null,null,null,null,null,null,{"$error":"#N/A"},null,null,null,null,null,"SEVILLA",76736]
[null,null,null,null,null,null,null,null,null,null,null,null,null,null,{"$error":"#N/A"},null,null,null,null,null,"SIACHOQUE",15740]
[null,null,null,null,null,null,null,null,null,null,null,null,null,null,{"$error":"#N/A"},null,null,null,null,null,"SIBATE",25740]
[null,null,null,null,null,null,null,null,null,null,null,null,null,null,{"$error":"#N/A"},null,null,null,null,null,"SIBUNDOY",86749]
[null,null,null,null,null,null,null,null,null,null,null,null,null,null,{"$error":"#N/A"},null,null,null,null,null,"SILOS",54743]
[null,null,null,null,null,null,null,null,null,null,null,null,null,null,{"$error":"#N/A"},null,null,null,null,null,"SILVANIA",25743]
[null,null,null,null,null,null,null,null,null,null,null,null,null,null,{"$error":"#N/A"},null,null,null,null,null,"SILVIA",19743]
[null,null,null,null,null,null,null,null,null,null,null,null,null,null,{"$error":"#N/A"},null,null,null,null,null,"SIMACOTA",68745]
[null,null,null,null,null,null,null,null,null,null,null,null,null,null,{"$error":"#N/A"},null,null,null,null,null,"SIMIJACA",25745]
[null,null,null,null,null,null,null,null,null,null,null,null,null,null,{"$error":"#N/A"},null,null,null,null,null,"SIMITI",13744]
[null,null,null,null,null,null,null,null,null,null,null,null,null,null,{"$error":"#N/A"},null,null,null,null,null,"SINCE",70742]
[null,null,null,null,null,null,null,null,null,null,null,null,null,null,{"$error":"#N/A"},null,null,null,null,null,"SINCELEJO",70001]
[null,null,null,null,null,null,null,null,null,null,null,null,null,null,{"$error":"#N/A"},null,null,null,null,null,"SIPI",27745]
[null,null,null,null,null,null,null,null,null,null,null,null,null,null,{"$error":"#N/A"},null,null,null,null,null,"SITIONUEVO",47745]
[null,null,null,null,null,null,null,null,null,null,null,null,null,null,{"$error":"#N/A"},null,null,null,null,null,"SN CAYETANO - CUNDINAMARCA",25653]
[null,null,null,null,null,null,null,null,null,null,null,null,null,null,{"$error":"#N/A"},null,null,null,null,null,"SN CAYETANO - N.SDER",54673]
[null,null,null,null,null,null,null,null,null,null,null,null,null,null,{"$error":"#N/A"},null,null,null,null,null,"SN SEBASTIAN BELLAVISTA",47692]
[null,null,null,null,null,null,null,null,null,null,null,null,null,null,{"$error":"#N/A"},null,null,null,null,null,"SOACHA",25754]
[null,null,null,null,null,null,null,null,null,null,null,null,null,null,{"$error":"#N/A"},null,null,null,null,null,"SOATA",15753]
[null,null,null,null,null,null,null,null,null,null,null,null,null,null,{"$error":"#N/A"},null,null,null,null,null,"SOCHA",15757]
[null,null,null,null,null,null,null,null,null,null,null,null,null,null,{"$error":"#N/A"},null,null,null,null,null,"SOCORRO",68755]
[null,null,null,null,null,null,null,null,null,null,null,null,null,null,{"$error":"#N/A"},null,null,null,null,null,"SOCOTA",15755]
[null,null,null,null,null,null,null,null,null,null,null,null,null,null,{"$error":"#N/A"},null,null,null,null,null,"SOGAMOSO",15759]
[null,null,null,null,null,null,null,null,null,null,null,null,null,null,{"$error":"#N/A"},null,null,null,null,null,"SOLANO",18765]
[null,null,null,null,null,null,null,null,null,null,null,null,null,null,{"$error":"#N/A"},null,null,null,null,null,"SOLEDAD",8758]
[null,null,null,null,null,null,null,null,null,null,null,null,null,null,{"$error":"#N/A"},null,null,null,null,null,"SOLITA",18785]
[null,null,null,null,null,null,null,null,null,null,null,null,null,null,{"$error":"#N/A"},null,null,null,null,null,"SOMONDOCO",15761]
[null,null,null,null,null,null,null,null,null,null,null,null,null,null,{"$error":"#N/A"},null,null,null,null,null,"SONSON",5756]
[null,null,null,null,null,null,null,null,null,null,null,null,null,null,{"$error":"#N/A"},null,null,null,null,null,"SOPETRAN",5761]
[null,null,null,null,null,null,null,null,null,null,null,null,null,null,{"$error":"#N/A"},null,null,null,null,null,"SOPLAVIENTO",13760]
[null,null,null,null,null,null,null,null,null,null,null,null,null,null,{"$error":"#N/A"},null,null,null,null,null,"SOPO",25758]
[null,null,null,null,null,null,null,null,null,null,null,null,null,null,{"$error":"#N/A"},null,null,null,null,null,"SORA",15762]
[null,null,null,null,null,null,null,null,null,null,null,null,null,null,{"$error":"#N/A"},null,null,null,null,null,"SORACA",15764]
[null,null,null,null,null,null,null,null,null,null,null,null,null,null,{"$error":"#N/A"},null,null,null,null,null,"SOTAQUIRA",15763]
[null,null,null,null,null,null,null,null,null,null,null,null,null,null,{"$error":"#N/A"},null,null,null,null,null,"SOTARA",19760]
[null,null,null,null,null,null,null,null,null,null,null,null,null,null,{"$error":"#N/A"},null,null,null,null,null,"STA BARBARA - ANTIOQUIA",5679]
[null,null,null,null,null,null,null,null,null,null,null,null,null,null,{"$error":"#N/A"},null,null,null,null,null,"STA BARBARA - NARINO",52696]
[null,null,null,null,null,null,null,null,null,null,null,null,null,null,{"$error":"#N/A"},null,null,null,null,null,"STA BARBARA - SANTANDER",68705]
[null,null,null,null,null,null,null,null,null,null,null,null,null,null,{"$error":"#N/A"},null,null,null,null,null,"STA ROSA",19701]
[null,null,null,null,null,null,null,null,null,null,null,null,null,null,{"$error":"#N/A"},null,null,null,null,null,"STDER DE QUILICHAO",19698]
[null,null,null,null,null,null,null,null,null,null,null,null,null,null,{"$error":"#N/A"},null,null,null,null,null,"SUAITA",68770]
[null,null,null,null,null,null,null,null,null,null,null,null,null,null,{"$error":"#N/A"},null,null,null,null,null,"SUAN",8770]
[null,null,null,null,null,null,null,null,null,null,null,null,null,null,{"$error":"#N/A"},null,null,null,null,null,"SUAREZ - CAUCA",19780]
[null,null,null,null,null,null,null,null,null,null,null,null,null,null,{"$error":"#N/A"},null,null,null,null,null,"SUAREZ - TOLIMA",73770]
[null,null,null,null,null,null,null,null,null,null,null,null,null,null,{"$error":"#N/A"},null,null,null,null,null,"SUAZA",41770]
[null,null,null,null,null,null,null,null,null,null,null,null,null,null,{"$error":"#N/A"},null,null,null,null,null,"SUBACHOQUE",25769]
[null,null,null,null,null,null,null,null,null,null,null,null,null,null,{"$error":"#N/A"},null,null,null,null,null,"SUCRE - SANTANDER",68773]
[null,null,null,null,null,null,null,null,null,null,null,null,null,null,{"$error":"#N/A"},null,null,null,null,null,"SUCRE - SUCRE",70771]
[null,null,null,null,null,null,null,null,null,null,null,null,null,null,{"$error":"#N/A"},null,null,null,null,null,"SUCRE-CAUCA",19785]
[null,null,null,null,null,null,null,null,null,null,null,null,null,null,{"$f":"VLOOKUP(K976,$U$16:$V$1123,2,0)","v":{"$error":"#N/A"}},null,null,null,null,null,"SUESCA",25772]
[null,null,null,null,null,null,null,null,null,null,null,null,null,null,{"$error":"#N/A"},null,null,null,null,null,"SUPATA",25777]
[null,null,null,null,null,null,null,null,null,null,null,null,null,null,{"$error":"#N/A"},null,null,null,null,null,"SUPIA",17777]
[null,null,null,null,null,null,null,null,null,null,null,null,null,null,{"$error":"#N/A"},null,null,null,null,null,"SURATA",68780]
[null,null,null,null,null,null,null,null,null,null,null,null,null,null,{"$error":"#N/A"},null,null,null,null,null,"SUSA",25779]
[null,null,null,null,null,null,null,null,null,null,null,null,null,null,{"$error":"#N/A"},null,null,null,null,null,"SUSACON",15774]
[null,null,null,null,null,null,null,null,null,null,null,null,null,null,{"$error":"#N/A"},null,null,null,null,null,"SUTAMARCHAN",15776]
[null,null,null,null,null,null,null,null,null,null,null,null,null,null,{"$error":"#N/A"},null,null,null,null,null,"SUTATAUSA",25781]
[null,null,null,null,null,null,null,null,null,null,null,null,null,null,{"$error":"#N/A"},null,null,null,null,null,"SUTATENZA",15778]
[null,null,null,null,null,null,null,null,null,null,null,null,null,null,{"$error":"#N/A"},null,null,null,null,null,"TABIO",25785]
[null,null,null,null,null,null,null,null,null,null,null,null,null,null,{"$error":"#N/A"},null,null,null,null,null,"TADO",27787]
[null,null,null,null,null,null,null,null,null,null,null,null,null,null,{"$error":"#N/A"},null,null,null,null,null,"TALAIGUA NUEVO",13780]
[null,null,null,null,null,null,null,null,null,null,null,null,null,null,{"$error":"#N/A"},null,null,null,null,null,"TAMALAMEQUE",20787]
[null,null,null,null,null,null,null,null,null,null,null,null,null,null,{"$error":"#N/A"},null,null,null,null,null,"TAMARA",85400]
[null,null,null,null,null,null,null,null,null,null,null,null,null,null,{"$error":"#N/A"},null,null,null,null,null,"TAME",81794]
[null,null,null,null,null,null,null,null,null,null,null,null,null,null,{"$error":"#N/A"},null,null,null,null,null,"TAMESIS",5789]
[null,null,null,null,null,null,null,null,null,null,null,null,null,null,{"$error":"#N/A"},null,null,null,null,null,"TAMINANGO",52786]
[null,null,null,null,null,null,null,null,null,null,null,null,null,null,{"$error":"#N/A"},null,null,null,null,null,"TANGUA",52788]
[null,null,null,null,null,null,null,null,null,null,null,null,null,null,{"$error":"#N/A"},null,null,null,null,null,"TARAIRA",97666]
[null,null,null,null,null,null,null,null,null,null,null,null,null,null,{"$error":"#N/A"},null,null,null,null,null,"TARAPACA",91798]
[null,null,null,null,null,null,null,null,null,null,null,null,null,null,{"$error":"#N/A"},null,null,null,null,null,"TARAZA",5790]
[null,null,null,null,null,null,null,null,null,null,null,null,null,null,{"$error":"#N/A"},null,null,null,null,null,"TARQUI",41791]
[null,null,null,null,null,null,null,null,null,null,null,null,null,null,{"$error":"#N/A"},null,null,null,null,null,"TARSO",5792]
[null,null,null,null,null,null,null,null,null,null,null,null,null,null,{"$error":"#N/A"},null,null,null,null,null,"TASCO",15790]
[null,null,null,null,null,null,null,null,null,null,null,null,null,null,{"$error":"#N/A"},null,null,null,null,null,"TAURAMENA",85410]
[null,null,null,null,null,null,null,null,null,null,null,null,null,null,{"$error":"#N/A"},null,null,null,null,null,"TAUSA",25793]
[null,null,null,null,null,null,null,null,null,null,null,null,null,null,{"$error":"#N/A"},null,null,null,null,null,"TELLO",41799]
[null,null,null,null,null,null,null,null,null,null,null,null,null,null,{"$error":"#N/A"},null,null,null,null,null,"TENA",25797]
[null,null,null,null,null,null,null,null,null,null,null,null,null,null,{"$error":"#N/A"},null,null,null,null,null,"TENERIFE",47798]
[null,null,null,null,null,null,null,null,null,null,null,null,null,null,{"$error":"#N/A"},null,null,null,null,null,"TENJO",25799]
[null,null,null,null,null,null,null,null,null,null,null,null,null,null,{"$error":"#N/A"},null,null,null,null,null,"TENZA",15798]
[null,null,null,null,null,null,null,null,null,null,null,null,null,null,{"$error":"#N/A"},null,null,null,null,null,"TEORAMA",54800]
[null,null,null,null,null,null,null,null,null,null,null,null,null,null,{"$error":"#N/A"},null,null,null,null,null,"TERUEL",41801]
[null,null,null,null,null,null,null,null,null,null,null,null,null,null,{"$error":"#N/A"},null,null,null,null,null,"TESALIA",41797]
[null,null,null,null,null,null,null,null,null,null,null,null,null,null,{"$error":"#N/A"},null,null,null,null,null,"TIBACUY",25805]
[null,null,null,null,null,null,null,null,null,null,null,null,null,null,{"$error":"#N/A"},null,null,null,null,null,"TIBANA",15804]
[null,null,null,null,null,null,null,null,null,null,null,null,null,null,{"$error":"#N/A"},null,null,null,null,null,"TIBASOSA",15806]
[null,null,null,null,null,null,null,null,null,null,null,null,null,null,{"$error":"#N/A"},null,null,null,null,null,"TIBIRITA",25807]
[null,null,null,null,null,null,null,null,null,null,null,null,null,null,{"$error":"#N/A"},null,null,null,null,null,"TIBIRITA",25807]
[null,null,null,null,null,null,null,null,null,null,null,null,null,null,null,null,null,null,null,null,"TIMBIO",19807]
[null,null,null,null,null,null,null,null,null,null,null,null,null,null,null,null,null,null,null,null,"TIMBIQUI",19809]
[null,null,null,null,null,null,null,null,null,null,null,null,null,null,null,null,null,null,null,null,"TINJACA",15808]
[null,null,null,null,null,null,null,null,null,null,null,null,null,null,null,null,null,null,null,null,"TIPACOQUE",15810]
[null,null,null,null,null,null,null,null,null,null,null,null,null,null,null,null,null,null,null,null,"TIQUISIO",13810]
[null,null,null,null,null,null,null,null,null,null,null,null,null,null,null,null,null,null,null,null,"TITIRIBI",5809]
[null,null,null,null,null,null,null,null,null,null,null,null,null,null,null,null,null,null,null,null,"TOCA",15814]
[null,null,null,null,null,null,null,null,null,null,null,null,null,null,null,null,null,null,null,null,"TOCAIMA",25815]
[null,null,null,null,null,null,null,null,null,null,null,null,null,null,null,null,null,null,null,null,"TOCANCIPA",25817]
[null,null,null,null,null,null,null,null,null,null,null,null,null,null,null,null,null,null,null,null,"TOGUI",15816]
[null,null,null,null,null,null,null,null,null,null,null,null,null,null,null,null,null,null,null,null,"TOLEDO - ANTIOQUIA",5819]
[null,null,null,null,null,null,null,null,null,null,null,null,null,null,null,null,null,null,null,null,"TOLEDO - N. SANTANDER",54820]
[null,null,null,null,null,null,null,null,null,null,null,null,null,null,null,null,null,null,null,null,"TOLU",70820]
[null,null,null,null,null,null,null,null,null,null,null,null,null,null,null,null,null,null,null,null,"TOLUVIEJO",70823]
[null,null,null,null,null,null,null,null,null,null,null,null,null,null,null,null,null,null,null,null,"TONA",68820]
[null,null,null,null,null,null,null,null,null,null,null,null,null,null,null,null,null,null,null,null,"TOPAGA",15820]
[null,null,null,null,null,null,null,null,null,null,null,null,null,null,null,null,null,null,null,null,"TOPAIPI",25823]
[null,null,null,null,null,null,null,null,null,null,null,null,null,null,null,null,null,null,null,null,"TORIBIO",19821]
[null,null,null,null,null,null,null,null,null,null,null,null,null,null,null,null,null,null,null,null,"TORO",76823]
[null,null,null,null,null,null,null,null,null,null,null,null,null,null,null,null,null,null,null,null,"TOTA",15822]
[null,null,null,null,null,null,null,null,null,null,null,null,null,null,null,null,null,null,null,null,"TOTORO",19824]
[null,null,null,null,null,null,null,null,null,null,null,null,null,null,null,null,null,null,null,null,"TRINIDAD",85430]
[null,null,null,null,null,null,null,null,null,null,null,null,null,null,null,null,null,null,null,null,"TRUJILLO",76828]
[null,null,null,null,null,null,null,null,null,null,null,null,null,null,null,null,null,null,null,null,"TUBARA",8832]
[null,null,null,null,null,null,null,null,null,null,null,null,null,null,null,null,null,null,null,null,"TULUA",76834]
[null,null,null,null,null,null,null,null,null,null,null,null,null,null,null,null,null,null,null,null,"TUMACO",52835]
[null,null,null,null,null,null,null,null,null,null,null,null,null,null,null,null,null,null,null,null,"TUNJA",15001]
[null,null,null,null,null,null,null,null,null,null,null,null,null,null,null,null,null,null,null,null,"TUNUNGUA",15832]
[null,null,null,null,null,null,null,null,null,null,null,null,null,null,null,null,null,null,null,null,"TUQUERRES",52838]
[null,null,null,null,null,null,null,null,null,null,null,null,null,null,null,null,null,null,null,null,"TURBACO",13836]
[null,null,null,null,null,null,null,null,null,null,null,null,null,null,null,null,null,null,null,null,"TURBANA",13838]
[null,null,null,null,null,null,null,null,null,null,null,null,null,null,null,null,null,null,null,null,"TURBO",5837]
[null,null,null,null,null,null,null,null,null,null,null,null,null,null,null,null,null,null,null,null,"TURMEQUE",15835]
[null,null,null,null,null,null,null,null,null,null,null,null,null,null,null,null,null,null,null,null,"TUTA",15837]
[null,null,null,null,null,null,null,null,null,null,null,null,null,null,null,null,null,null,null,null,"TUTASA",15839]
[null,null,null,null,null,null,null,null,null,null,null,null,null,null,null,null,null,null,null,null,"UBALA",25839]
[null,null,null,null,null,null,null,null,null,null,null,null,null,null,null,null,null,null,null,null,"UBAQUE",25841]
[null,null,null,null,null,null,null,null,null,null,null,null,null,null,null,null,null,null,null,null,"UBATE",25843]
[null,null,null,null,null,null,null,null,null,null,null,null,null,null,null,null,null,null,null,null,"ULLOA",76845]
[null,null,null,null,null,null,null,null,null,null,null,null,null,null,null,null,null,null,null,null,"UMBITA",15842]
[null,null,null,null,null,null,null,null,null,null,null,null,null,null,null,null,null,null,null,null,"UNE",25845]
[null,null,null,null,null,null,null,null,null,null,null,null,null,null,null,null,null,null,null,null,"UNGUIA",27800]
[null,null,null,null,null,null,null,null,null,null,null,null,null,null,null,null,null,null,null,null,"UNION PANAMERICANA",27810]
[null,null,null,null,null,null,null,null,null,null,null,null,null,null,null,null,null,null,null,null,"URAMITA",5842]
[null,null,null,null,null,null,null,null,null,null,null,null,null,null,null,null,null,null,null,null,"URIBIA",44847]
[null,null,null,null,null,null,null,null,null,null,null,null,null,null,null,null,null,null,null,null,"URRAO",5847]
[null,null,null,null,null,null,null,null,null,null,null,null,null,null,null,null,null,null,null,null,"URUMITA",44855]
[null,null,null,null,null,null,null,null,null,null,null,null,null,null,null,null,null,null,null,null,"USIACURI",8849]
[null,null,null,null,null,null,null,null,null,null,null,null,null,null,null,null,null,null,null,null,"UTICA",25851]
[null,null,null,null,null,null,null,null,null,null,null,null,null,null,null,null,null,null,null,null,"VALDIVIA",5854]
[null,null,null,null,null,null,null,null,null,null,null,null,null,null,null,null,null,null,null,null,"VALENCIA",23855]
[null,null,null,null,null,null,null,null,null,null,null,null,null,null,null,null,null,null,null,null,"VALLE DE S JUAN",73854]
[null,null,null,null,null,null,null,null,null,null,null,null,null,null,null,null,null,null,null,null,"VALLE DEL GUAMUEZ",86865]
[null,null,null,null,null,null,null,null,null,null,null,null,null,null,null,null,null,null,null,null,"VALLE SAN JOSE",68855]
[null,null,null,null,null,null,null,null,null,null,null,null,null,null,null,null,null,null,null,null,"VALLEDUPAR",20001]
[null,null,null,null,null,null,null,null,null,null,null,null,null,null,null,null,null,null,null,null,"VALPARAISO - ANTIOQUIA",5856]
[null,null,null,null,null,null,null,null,null,null,null,null,null,null,null,null,null,null,null,null,"VALPARAISO - CAQUETA",18860]
[null,null,null,null,null,null,null,null,null,null,null,null,null,null,null,null,null,null,null,null,"VEGACHI",5858]
[null,null,null,null,null,null,null,null,null,null,null,null,null,null,null,null,null,null,null,null,"VELEZ",68861]
[null,null,null,null,null,null,null,null,null,null,null,null,null,null,null,null,null,null,null,null,"VENADILLO",73861]
[null,null,null,null,null,null,null,null,null,null,null,null,null,null,null,null,null,null,null,null,"VENECIA",5861]
[null,null,null,null,null,null,null,null,null,null,null,null,null,null,null,null,null,null,null,null,"VENTAQUEMADA",15861]
[null,null,null,null,null,null,null,null,null,null,null,null,null,null,null,null,null,null,null,null,"VERGARA",25862]
[null,null,null,null,null,null,null,null,null,null,null,null,null,null,null,null,null,null,null,null,"VERSALLES",76863]
[null,null,null,null,null,null,null,null,null,null,null,null,null,null,null,null,null,null,null,null,"VETAS",68867]
[null,null,null,null,null,null,null,null,null,null,null,null,null,null,null,null,null,null,null,null,"VIANI",25867]
[null,null,null,null,null,null,null,null,null,null,null,null,null,null,null,null,null,null,null,null,"VICTORIA",17867]
[null,null,null,null,null,null,null,null,null,null,null,null,null,null,null,null,null,null,null,null,"VIGIA DEL FUERTE",5873]
[null,null,null,null,null,null,null,null,null,null,null,null,null,null,null,null,null,null,null,null,"VIJES",76869]
[null,null,null,null,null,null,null,null,null,null,null,null,null,null,null,null,null,null,null,null,"VILLA DEL ROSARIO",54874]
[null,null,null,null,null,null,null,null,null,null,null,null,null,null,null,null,null,null,null,null,"VILLA FATIMA",97555]
[null,null,null,null,null,null,null,null,null,null,null,null,null,null,null,null,null,null,null,null,"VILLA RICA",19845]
[null,null,null,null,null,null,null,null,null,null,null,null,null,null,null,null,null,null,null,null,"VILLACARO",54871]
[null,null,null,null,null,null,null,null,null,null,null,null,null,null,null,null,null,null,null,null,"VILLAGARZON",86885]
[null,null,null,null,null,null,null,null,null,null,null,null,null,null,null,null,null,null,null,null,"VILLAGOMEZ",25871]
[null,null,null,null,null,null,null,null,null,null,null,null,null,null,null,null,null,null,null,null,"VILLAHERMOSA",73870]
[null,null,null,null,null,null,null,null,null,null,null,null,null,null,null,null,null,null,null,null,"VILLAMARIA",17873]
[null,null,null,null,null,null,null,null,null,null,null,null,null,null,null,null,null,null,null,null,"VILLANUEVA",85440]
[null,null,null,null,null,null,null,null,null,null,null,null,null,null,null,null,null,null,null,null,"VILLANUEVA - BOLIVAR",13873]
[null,null,null,null,null,null,null,null,null,null,null,null,null,null,null,null,null,null,null,null,"VILLANUEVA - GUAJIRA",44874]
[null,null,null,null,null,null,null,null,null,null,null,null,null,null,null,null,null,null,null,null,"VILLANUEVA - SANTANDER",68872]
[null,null,null,null,null,null,null,null,null,null,null,null,null,null,null,null,null,null,null,null,"VILLAPINZON",25873]
[null,null,null,null,null,null,null,null,null,null,null,null,null,null,null,null,null,null,null,null,"VILLARRICA",73873]
[null,null,null,null,null,null,null,null,null,null,null,null,null,null,null,null,null,null,null,null,"VILLAVICENCIO",50001]
[null,null,null,null,null,null,null,null,null,null,null,null,null,null,null,null,null,null,null,null,"VILLAVIEJA",41872]
[null,null,null,null,null,null,null,null,null,null,null,null,null,null,null,null,null,null,null,null,"VILLETA",25875]
[null,null,null,null,null,null,null,null,null,null,null,null,null,null,null,null,null,null,null,null,"VIOTA",25878]
[null,null,null,null,null,null,null,null,null,null,null,null,null,null,null,null,null,null,null,null,"VIRACACHA",15879]
[null,null,null,null,null,null,null,null,null,null,null,null,null,null,null,null,null,null,null,null,"VISTA HERMOSA",50711]
[null,null,null,null,null,null,null,null,null,null,null,null,null,null,null,null,null,null,null,null,"VITERBO",17877]
[null,null,null,null,null,null,null,null,null,null,null,null,null,null,null,null,null,null,null,null,"YACOPI",25885]
[null,null,null,null,null,null,null,null,null,null,null,null,null,null,null,null,null,null,null,null,"YACUANQUER",52885]
[null,null,null,null,null,null,null,null,null,null,null,null,null,null,null,null,null,null,null,null,"YAGUARA",41885]
[null,null,null,null,null,null,null,null,null,null,null,null,null,null,null,null,null,null,null,null,"YALI",5885]
[null,null,null,null,null,null,null,null,null,null,null,null,null,null,null,null,null,null,null,null,"YARUMAL",5887]
[null,null,null,null,null,null,null,null,null,null,null,null,null,null,null,null,null,null,null,null,"YAVARATE",97889]
[null,null,null,null,null,null,null,null,null,null,null,null,null,null,null,null,null,null,null,null,"YOLOMBO",5890]
[null,null,null,null,null,null,null,null,null,null,null,null,null,null,null,null,null,null,null,null,"YONDO",5893]
[null,null,null,null,null,null,null,null,null,null,null,null,null,null,null,null,null,null,null,null,"YOPAL",85001]
[null,null,null,null,null,null,null,null,null,null,null,null,null,null,null,null,null,null,null,null,"YOTOCO",76890]
[null,null,null,null,null,null,null,null,null,null,null,null,null,null,null,null,null,null,null,null,"YUMBO",76892]
[null,null,null,null,null,null,null,null,null,null,null,null,null,null,null,null,null,null,null,null,"ZAMBRANO",13894]
[null,null,null,null,null,null,null,null,null,null,null,null,null,null,null,null,null,null,null,null,"ZAPATOCA",68895]
[null,null,null,null,null,null,null,null,null,null,null,null,null,null,null,null,null,null,null,null,"ZARAGOZA",5895]
[null,null,null,null,null,null,null,null,null,null,null,null,null,null,null,null,null,null,null,null,"ZARZAL",76895]
[null,null,null,null,null,null,null,null,null,null,null,null,null,null,null,null,null,null,null,null,"ZETAQUIRA",15897]
[null,null,null,null,null,null,null,null,null,null,null,null,null,null,null,null,null,null,null,null,"ZIPACON",25898]
[null,null,null,null,null,null,null,null,null,null,null,null,null,null,null,null,null,null,null,null,"ZIPAQUIRA",25899]
[null,null,null,null,null,null,null,null,null,null,null,null,null,null,null,null,null,null,null,null,"ZONA BANANERA",47980]